{"text_format":"1","workbook":"xlsx","n_sheets":8,"sheets":["Prompt","PART I General","PART II Data","PART III Calculation","PART IV Consultation","PART V Expenditures","MASTER","District Lookup List"],"not_rendered":{"charts":0,"images":9,"macros":1,"external_links":2,"defined_names":30,"comments":0,"pivot_tables":0},"unopened":[],"bounds":{"document_bytes":16777216,"sheet_cells":100000,"rows_first":2000,"rows_last":500,"rows_between":2000,"halvings":0,"cell_chars":16384,"cell_head_chars":4096},"cells_cut":0,"cells_raw":0,"read":"whole","date_system":"1900"}

{"sheet":"Prompt","index":0,"n_rows":0,"n_cols":0,"rows_kept":0,"cut":false,"hidden":false,"merged":[]}

{"sheet":"PART I General","index":1,"n_rows":36,"n_cols":11,"rows_kept":36,"cut":false,"hidden":true,"merged":[[3,0,3,10],[45,1,45,8],[46,1,46,9],[44,1,44,10],[19,1,19,8],[20,1,20,8],[21,1,21,8],[32,1,33,10],[29,1,29,10],[22,1,22,8],[24,1,24,8],[23,1,23,8],[35,1,35,3],[35,5,35,7],[31,1,31,8],[4,6,4,7],[6,4,6,9],[34,1,34,3],[34,5,34,7],[25,1,25,8],[8,0,8,9],[9,0,9,10],[18,1,18,10],[17,1,17,10],[27,1,27,10],[28,1,28,10],[15,4,15,5],[15,6,15,10],[4,2,4,3],[1,0,1,10],[0,9,0,10],[14,4,14,5],[14,6,14,10],[10,0,11,3],[11,4,11,8],[10,4,10,8],[12,0,15,3],[12,4,12,5],[12,6,12,10],[13,4,13,5],[13,6,13,10],[2,2,2,8],[4,4,4,5],[6,1,6,3]]}
[null,null,null,null,null,null,null,null,null,"FY19 - Fund Code 240"]
[]
["PART I: "]
["Required Record-Keeping and Proportionate Share Calculation form for Parentally-Placed Children With Disabilities Enrolled by Their Parents in Private Schools   34 CFR §§300.130-300.144"]
[null,null,"District LEA Code:",null,{"$f":"VLOOKUP('PART I General'!$E$7,'District Lookup List'!A1:S450,6,FALSE)","v":"ORGANIZATION CODE"},null,"Date Submitted:"]
[null,null,null,null,".",null,null,null,"."]
[null,"School District Name:",null,null,1]
[]
["GENERAL INFORMATION"]
["This form documents the calculation of \"proportionate share\" and the use of Federal Special Education Entitlement funds (fund code 240) to serve one or more eligible parentally placed private school students and home school students. This report must be completed and provided to the Department annually. A copy should be kept at the district. The report is also designed to be used to provide information to private schools or parents on the calculation and spending of the proportionate share. The line items identified on this report (in Part V) must be aligned with line items submitted in the Fund Code 240 application."]
["School District Address:(Street, City/Town, Zip Code)",null,null,null,{"$f":"VLOOKUP('PART I General'!$E$7,'District Lookup List'!A1:S450,8,FALSE)","v":"ADDRESS LINE 1"}]
[null,null,null,null,{"$f":"VLOOKUP('PART I General'!$E$7,'District Lookup List'!A1:S450,10,FALSE)","v":"CITY/TOWN"},null,null,null,null,{"$f":"VLOOKUP('PART I General'!$E$7,'District Lookup List'!A1:S450,11,FALSE)","v":"STATE"},{"$f":"VLOOKUP('PART I General'!$E$7,'District Lookup List'!A1:S450,12,FALSE)","v":"ZIP CODE"}]
["Name of person to contact regarding this report: ",null,null,null,"Name:"]
[null,null,null,null,"Title:"]
[null,null,null,null,"Phone Number:"]
[null,null,null,null,"E-mail Address:"]
[]
["#1.","Please indicate whether or not your district has private school(s) and any home schooled students in your geographic boundaries:"]
[null,"Select your answer below.                 "]
["A","Our district is a charter school district. "]
["B","Our district is a virtual school district."]
["C","Our district is a career/vocational technical district."]
["D","YES, our district has private school(s) in our geographic boundaries."]
["E","YES, our district has approved home school students in our geographic boundaries."]
["F","NO, our district does not have private school(s) in our geographic boundaries.",null,null,null,null,null,null,null,{"$f":"IF(ISNUMBER(SEARCH(\"TRUE\", $M25)), \"YES\", \"\")","v":""}]
["G","NO, our district does not have approved home school students in our geographic boundaries.",null,null,null,null,null,null,null,""]
[]
["#2.","If you selected A, B, or C please save and submit your form. Your district has no additional requirements for proportionate share activities. "]
[null,"If you responded YES to D and/or E, please fill out all of Parts II, III, IV and V."]
[null,"If you responded NO to both F and G, please fill out Part II, (section 2) Annual Data Collection, column C only."]
[]
["#3. ","If you responded YES to A or B above, please fill out the assurance below before you proceed:"]
[null,"Assurance Statement: The district assures that these activities are in compliance with Administrative Advisory SPED 2018-1:\nGuidance and Workbook for Calculating and Providing Proportionate Share Services for Students with Disabilities Enrolled by Their Parents in Private Schools, are a part of the district’s overall plan to spend the special education entitlement funds, and are reflected in the official budget submitted by the district this fiscal year for grant code 240:"]
[]
[]
[null,"Full Name",null,null,null,"Title",null,null,null,"Date"]

{"sheet":"PART II Data","index":2,"n_rows":22,"n_cols":12,"rows_kept":22,"cut":false,"hidden":true,"merged":[[1,0,1,9],[2,0,2,9],[15,8,15,10],[3,1,3,12],[4,8,4,10],[4,11,4,12],[8,1,8,7],[8,11,8,12],[10,1,10,7],[11,1,11,7],[7,11,7,12],[5,8,5,10],[5,11,5,12],[16,11,16,12],[17,8,17,10],[17,11,17,12],[5,0,6,7],[7,1,7,7],[0,0,0,6],[27,1,27,10],[22,1,22,7],[19,1,19,7],[19,11,19,12],[20,1,20,7],[20,11,20,12],[21,1,21,7],[21,11,21,12],[18,11,18,12],[6,11,6,12],[15,0,15,7],[17,0,18,7],[6,8,6,10],[15,11,15,12],[16,8,16,10]]}
["PART II:"]
["Required Record-Keeping and Child Count"]
[" This data is necessary for the Department to maintain records of Eligible Private School Students over time."]
[]
[null,null,null,null,null,null,null,null,"Eligible Private School Students",null,null,"Eligible Private School Students"]
["(Section 1) Annual count of the number of parentally-placed private school children with disabilities (34 CFR § 300.133(c))",null,null,null,null,null,null,null,"who live in your town.",null,null,"who do not live in your town."]
[null,null,null,null,null,null,null,null,"(Resident)",null,null,"(Non-Resident)"]
[null," Child count is conducted on any date between October 1 and December 1, inclusive, of each year.",null,null,null,null,null,null,"A. Attending private school within your district (eligible for special education)","B. Home schooled within your district (eligible for special education)",null,"C. Attending private school within your district (eligible for special education)"]
["Line 1"," # of all currently eligible parentally-placed private school students ages 3-21 attending an elementary or secondary school or home schooled in your district. *Keeping in mind a student remains eligible for 3 years following identification. *Includes all students found eligible, regardless of  whether they receive(d) special education services."]
[]
["Line 2","Total # of all currently eligible parentally-placed private school students ages 3-21 attending an elementary or secondary school or home schooled in your district for proportionate share calculation.  (auto calculation from cells in Line 1 above)",null,null,null,null,null,null,{"$f":"IF(I9+J9+L9=0, \"0\", I9+J9+L9)","v":"0"}]
["Line 3","# of public school district students with IEPs (SWIEPs) ages 3-21. (SWIEPs for your public school district for the 2017-2018 school year)"]
[]
[]
[]
[null,null,null,null,null,null,null,null,"Private School Students",null,null,"Private School Students"]
[null,null,null,null,null,null,null,null,"who live in your town.",null,null,"who do not live in your town."]
["(Section 2) Record Keeping  (34 CFR § 300.132(c))",null,null,null,null,null,null,null,"(Resident)",null,null,"(Non-Resident)"]
[null,null,null,null,null,null,null,null,"A. Attending private school within your district ","B. Home schooled within your district","C. Attending private school in another district","D. Attending private school within your district "]
["Line 1","Total # of parentally-placed private school students ages 3-21 evaluated by your district during 2017-2018 school year  (34 CFR § 300.132(c)(1))"]
["Line 2","Total # of parentally-placed private school students ages 3-21 found eligible during the school year 2017-2018 (may include evaluations you conducted, or, for non-residents, evaluations provided by the district of residence and accepted as evidence of eligibility.)  (34 CFR § 300.132(c)(2))   "]
["Line 3","Total # eligible parentally-placed private school students ages 3-21 served by your district during the school year 2017-2018 (34 CFR § 300.132(c)(3))"]

{"sheet":"PART III Calculation","index":3,"n_rows":7,"n_cols":9,"rows_kept":7,"cut":false,"hidden":true,"merged":[[0,0,0,3],[28,1,28,10],[5,1,5,7],[6,1,6,7],[1,0,1,8],[2,1,2,7],[3,1,3,7],[4,1,4,7]]}
["PART III:"]
["Calculating Proportionate Amount  (34 CFR § 300.133)"]
["A.","Total # of all currently eligible parentally-placed private school students ages 3-21 attending an elementary or secondary school or home schooled in your district. (auto fill) ",null,null,null,null,null,null,{"$f":"'PART II Data'!I11","v":"0"}]
["B.","Total of all eligible students (Using  data from data Part II, Section 1 Child Count, Line 2 plus Line 3) (auto fill)  ",null,null,null,null,null,null,{"$f":"'PART II Data'!I11+'PART II Data'!I12","v":0}]
["C.","Number in A divided by the number in B is the proportion that private school students represent of all eligible students. The result will be expressed as a percentage. (auto fill)",null,null,null,null,null,null,{"$f":"I3/I4","v":{"$error":"#DIV/0!"}}]
["D.","District's special education IDEA entitlement for FY19 (Fund Code 240). ",null,null,null,null,null,null,{"$f":"VLOOKUP('PART I General'!$E$7,'District Lookup List'!A1:S450,17,FALSE)","v":"FY19 Entitlement Amount"}]
["E.","This is the proportionate share of federal funds that the district is required to spend on services to eligible students who attend private schools and/or home-schools located in your district during the next fiscal year. (Line C multiplied by Line D)",null,null,null,null,null,null,{"$f":"IF(ISERROR(I6*I5), \"\", (I6*I5))","v":""}]

{"sheet":"PART IV Consultation","index":4,"n_rows":27,"n_cols":9,"rows_kept":27,"cut":false,"hidden":true,"merged":[[0,0,0,3],[25,0,25,9],[22,0,22,7],[24,0,24,1],[26,0,26,9],[23,0,23,7],[10,0,13,9],[1,0,1,9],[15,0,15,9],[16,0,20,9],[2,0,2,9],[3,0,7,9],[9,0,9,9]]}
["PART IV:"]
["Consultation  (34 CFR § 300.134)"]
["1. Previous date(s) or planned upcoming dates of timely and meaningful consultation with private school representatives and representatives of parents of parentally-placed private school children with disabilities inclusive of home school representatives:\n\n"]
[]
[]
[]
[]
[]
[]
["2. List private school representatives and representatives of parents of parentally-placed private school children with disabilities inclusive of home school representatives participating in timely and meaningful consultation meetings:"]
[]
[]
[]
[]
[]
["3. Consultation (34 CFR §300.134) must include a discussion of “child find” (34 CFR §300.134 (a)); the determination of proportionate share of funds (34 CFR §300.134 (b)); a discussion of consultation process (34 CFR §300.134 (c)), the provision of special education and related services (a discussion of possible services and how such services will be decided and delivered)  (34 CFR §§300.134 (d));  whether directly or through a contract. Following consultation, this space should briefly explain what services were decided upon and how such services will be provided."]
[]
[]
[]
[]
[]
[]
["4. Assurance:  For each timely and meaningful consultation during the year, our district will obtain signed written affirmations. Copies will be kept at the district for review by the DESE Public School Monitoring team. (34 CFR §300.135(a)) ",null,null,null,null,null,null,null,"(By selecting this box, you agree to the assurance on this page.) "]
["*If the private school representatives/parents do not provide the signed written affirmation within a reasonable period of time, the LEA must forward the documentation of the consultation process to DESE. Email documentation to ideaequitableservices@doe.mass.edu. . (34 CFR §300.135(b))"]
["Note:"]
["If the LEA disagrees with the views of the private school officials on the provision of services or the types of services (whether provided directly or through a contract), the LEA will provide to the private school officials a written explanation of the reasons why the LEA chose not to provide services directly or through a contract. (34 CFR §300.134 (e))."]
["For more information on timely and meaningful consulation, refer to Administrative Advisory SPED 2018-1: Guidance and Workbook for Calculating and Providing Proportionate Share Services for Students with Disabilities Enrolled by Their Parents in Private Schools"]

{"sheet":"PART V Expenditures","index":5,"n_rows":27,"n_cols":5,"rows_kept":27,"cut":false,"hidden":true,"merged":[[26,1,26,9],[24,1,25,9],[21,2,21,3],[21,4,21,9],[22,2,22,3],[22,4,22,9],[23,0,23,9],[18,2,18,3],[18,4,18,9],[19,2,19,3],[19,4,19,9],[20,2,20,3],[20,4,20,9],[15,2,15,3],[15,4,15,9],[16,2,16,3],[16,4,16,9],[17,2,17,3],[17,4,17,9],[12,2,12,3],[12,4,12,9],[13,2,13,3],[13,4,13,9],[14,2,14,3],[14,4,14,9],[0,0,0,3],[11,0,11,1],[11,2,11,3],[11,4,11,9],[1,0,1,9],[7,1,7,9],[8,1,8,9],[9,1,9,9],[6,1,6,9],[5,1,5,9],[3,0,4,9],[10,1,10,9]]}
["PART V:"]
["Expenditures (34 CFR §300.133)"]
[]
["Planned expenditures for FY19 to meet the calculated proportionate share amount for parentally-placed private school and home school children ages 3-21  attending school in your district."]
[]
["â","Note: Do not list your entire 240 budget below, only include expenses directly related to meeting your proportionate share obligation from your federal IDEA funds."]
["â","The explanation section should provide sufficient detail to effectively document the proportionate share services (direct or indirect), but should not provide individual student detail; because this form is a public document and will be made available to private schools or parents upon request."]
["â","Child find activities and evaluation activities cannot be included and do not count towards meeting your proportionate share. 300.131(d) "]
["â","The line item amounts identified below indicate the type of service or materials provided and the type of line item is aligned with the budget application for IDEA funds (Fund Code 240).  Any identified amounts below must be equal to or less than the identified amount in the corresponding line item for the budget submitted by the school district in its application for funds under Fund Code 240 in this fiscal year."]
["â","Line items that may not be attributed to proportionate share services are shaded and no entries should be included in those line items for private school student proportionate share services."]
["â","For more information on expenditures refer to: Equitable services determined (34 CFR § 300.137 ); Equitable services provided (34 CFR § 300.138); Location of services and transportation (34 CFR § 300.139); Use of personnel (34 CFR § 300.142); Separate classes prohibited (34 CFR § 300.143); and Property, equipment, and supplies (34 CFR § 300.144). "]
["LINE ITEM",null,"AMOUNT -                      use whole numbers",null,"EXPLANATION"]
["1.","Administrators"]
["2.","Instructional/ Professional Staff"]
["3.","Support Staff"]
["4.","Fringe Benefits (MTRS, Health Insurance, Other Retirement System)"]
["5.","Contractual Services (Indicate the services to be provided and the rate to be paid per hour or per day)"]
["6.","Supplies & Materials (Items costing less than $5,000 per unit or having a useful life of less than one year)"]
["7.","Travel (Mileage, conference registration, hotel, and meals)"]
["8.","Other"]
["9.","Indirect Costs"]
["10.","Equipment (List only items costing $5,000 or more per unit. Instructional Equipment/Non-instructional)"]
[11,"FY19 FUND CODE 240 PLANNED PROPORTIONATE SHARE EXPENDITURE",{"$f":"TRUNC(SUM(C14:D20)+C22)","v":0},null,"This amount should at least equal the PART III Calculation of proportionate share for your district."]
[]
[1,"34 CFR § 300.133(a)(3) If an LEA has not expended for equitable services all of the funds described in paragraphs (a)(1) and (a)(2) of this section by the end of the fiscal year for which Congress appropriated the funds, the LEA must obligate the remaining funds for special education and related services (including direct services) to parentally-placed private school children with disabilities during a carry-over period of one additional year."]
[]
[null,"When you have completed your form, please save and upload to your grant application."]

{"sheet":"MASTER","index":6,"n_rows":2,"n_cols":63,"rows_kept":2,"cut":false,"hidden":true,"merged":[]}
["District LEA Code:","Date Submitted","School District Name:","ADDRESS LINE 1","CITY/TOWN","STATE","ZIP CODE","Name:","Title:","Phone Number:","E-mail Address:","NO, our district is a charter school, virtual school, or career/vocational technical school. A, B and C","YES, our district has private school(s) in our geographic boundaries.D.","YES, our district has approved home school students in our geographic boundaries. E.","NO, our district does not have private school(s) in our geographic boundaries. F.","NO, our district does not have approved home school students in our geographic boundaries. G."," # of all currently eligible parentally-placed private school students ages 3-21 attending an elementary or secondary school or home schooled in your district. *Keeping in mind a student remains eligible for 3 years following identification. *Includes all students found eligible, regardless of  whether they receive(d) special education services.\nA. Attending private school within your district (eligible for special education) \n(Resident)"," # of all currently eligible parentally-placed private school students ages 3-21 attending an elementary or secondary school or home schooled in your district. *Keeping in mind a student remains eligible for 3 years following identification. *Includes all students found eligible, regardless of  whether they receive(d) special education services.  \nB. Home schooled within your district (eligible for special education)\n(Resident)"," # of all currently eligible parentally-placed private school students ages 3-21 attending an elementary or secondary school or home schooled in your district. *Keeping in mind a student remains eligible for 3 years following identification. *Includes all students found eligible, regardless of  whether they receive(d) special education services. C. Attending private school within your district (eligible for special Education)\n(Non-Resisent)","Total # of all currently eligible parentally-placed private school students ages 3-21 attending an elementary or secondary school or home schooled in your district for proportionate share calculation. \nA. Attending private school within your district (eligible for special education) \n(Resident)","# of public school district students with IEPs (SWIEPs) ages 3-21. (SWIEPs for your public school district for the 2017-2018 school year)\nA. Attending private school within your district (eligible for special education) \n(Resident)","Total # of parentally-placed private school students ages 3-21 evaluated by your district during 2017-2018 school year  (34 CFR § 300.132(c)(1))\nA. Attending private school within your district\n(Resident)","Total # of parentally-placed private school students ages 3-21 evaluated by your district during 2017-2018 school year  (34 CFR § 300.132(c)(1))\nB. Home schooled within your district\n(Resident)","Total # of parentally-placed private school students ages 3-21 evaluated by your district during 2017-2018 school year  (34 CFR § 300.132(c)(1))\nC. Attending private school in another district\n(Resident)","Total # of parentally-placed private school students ages 3-21 evaluated by your district during 2017-2018 school year  (34 CFR § 300.132(c)(1))\nD. Attending private school within your district\n(Non-Resident)","Total # of parentally-placed private school students ages 3-21 found eligible during the school year 2017-2018 (may include evaluations you conducted, or, for non-residents, evaluations provided by the district of residence and accepted as evidence of eligibility.)  (34 CFR § 300.132(c)(2))   \nA. Attending private school within your district\n(Resident)","Total # of parentally-placed private school students ages 3-21 found eligible during the school year 2017-2018 (may include evaluations you conducted, or, for non-residents, evaluations provided by the district of residence and accepted as evidence of eligibility.)  (34 CFR § 300.132(c)(2))  \n B. Home schooled within your district\n(Resident)","Total # of parentally-placed private school students ages 3-21 found eligible during the school year 2017-2018 (may include evaluations you conducted, or, for non-residents, evaluations provided by the district of residence and accepted as evidence of eligibility.)  (34 CFR § 300.132(c)(2))   \nC. Attending private school in another district\n(Resident)","Total # of parentally-placed private school students ages 3-21 found eligible during the school year 2017-2018 (may include evaluations you conducted, or, for non-residents, evaluations provided by the district of residence and accepted as evidence of eligibility.)  (34 CFR § 300.132(c)(2))   \nD. Attending private school within your district \n(Non-Resident)","Total # eligible parentally-placed private school students ages 3-21 served by your district during the school year 2017-2018 (34 CFR § 300.132(c)(3))\nA. Attending private school within your district\n(Resident)","Total # eligible parentally-placed private school students ages 3-21 served by your district during the school year 2017-2018 (34 CFR § 300.132(c)(3))\nB. Home schooled within your district\n(Resident)","Total # eligible parentally-placed private school students ages 3-21 served by your district during the school year 2017-2018 (34 CFR § 300.132(c)(3))\nC. Attending private school in another district\n(Resident)","Total # eligible parentally-placed private school students ages 3-21 served by your district during the school year 2017-2018 (34 CFR § 300.132(c)(3))\nD. Attending private school within your district\n(Non-Resident) ","Total # of all currently eligible parentally-placed private school students ages 3-21 attending an elementary or secondary school or home schooled in your district. (auto fill) ","Total of all eligible students (Using  data from data Part II, Section 1 Child Count, Line 2 plus Line 3) (auto fill) ","Number in A divided by the number in B is the proportion that private school students represent of all eligible students. The result will be expressed as a percentage. (auto fill)","District's special education IDEA entitlement for FY19 (Fund Code 240).","This is the proportionate share of federal funds that the district is required to spend on services to eligible students who attend private schools and/or home-schools located in your district during the next fiscal year. (Line C multiplied by Line D)","1. Previous date(s) or planned upcoming dates of timely and meaningful consultation with private school representatives and representatives of parents of parentally-placed private school children with disabilities inclusive of home school representatives:","2. List private school representatives and representatives of parents of parentally-placed private school children with disabilities inclusive of home school representatives participating in timely and meaningful consultation meetings:","3. Consultation (34 CFR §300.134) must include a discussion of “child find” (34 CFR §300.134 (a)); the determination of proportionate share of funds (34 CFR §300.134 (b)); a discussion of consultation process (34 CFR §300.134 (c)), the provision of special education and related services (a discussion of possible services and how such services will be decided and delivered)  (34 CFR §§300.134 (d));  whether directly or through a contract. Following consultation, this space should briefly explain what services were decided upon and how such services will be provided.","4. Assurance:  For each timely and meaningful consultation during the year, our district will obtain signed written affirmations. Copies will be kept at the district for review by the DESE Public School Monitoring team. (34 CFR §300.135(a)) . \nYES","4. Assurance:  For each timely and meaningful consultation during the year, our district will obtain signed written affirmations. Copies will be kept at the district for review by the DESE Public School Monitoring team. (34 CFR §300.135(a)) .\nNO","Instructional/ Professional Staff\nAmount","Instructional/ Direct Service Staff \nDetails","Non-Instructional/ Support Staff Amount","Non-Instructional/ Support Staff Details","Fringe Benefits \nAmount","Fringe Benefits \nDetails","Contractual Services \nAmount","Contractual Services \nDetails","Supplies \nAmount","Supplies Details","Travel \nAmount","Travel \nDetails","Other \nAmount","Other Details","Equipment \nAmount","Equipment \nDetails","FY19 FUND CODE 240 PLANNED PROPORTIONATE SHARE EXPENDITURE","Full Name","Title","Date"]
[{"$f":"'PART I General'!E5","v":"ORGANIZATION CODE"},{"$f":"'PART I General'!I5","v":"00:00:00"},{"$f":"VLOOKUP('PART I General'!$E$7,'District Lookup List'!A1:K77,5,FALSE)","v":"ORGANIZATION NAME"},{"$f":"'PART I General'!E11","v":"ADDRESS LINE 1"},{"$f":"'PART I General'!E12","v":"CITY/TOWN"},{"$f":"'PART I General'!J12","v":"STATE"},{"$f":"'PART I General'!K12","v":"ZIP CODE"},{"$f":"'PART I General'!G13","v":0},{"$f":"'PART I General'!G14","v":0},{"$f":"'PART I General'!G15","v":0},{"$f":"'PART I General'!G16","v":0},null,null,null,null,null,{"$f":"'PART II Data'!I9","v":0},{"$f":"'PART II Data'!J9","v":0},{"$f":"'PART II Data'!L9","v":0},{"$f":"'PART II Data'!I11","v":"0"},{"$f":"'PART II Data'!I12","v":0},{"$f":"'PART II Data'!I20","v":0},{"$f":"'PART II Data'!J20","v":0},{"$f":"'PART II Data'!K20","v":0},{"$f":"'PART II Data'!L20","v":0},{"$f":"'PART II Data'!I21","v":0},{"$f":"'PART II Data'!J21","v":0},{"$f":"'PART II Data'!K21","v":0},{"$f":"'PART II Data'!L21","v":0},{"$f":"'PART II Data'!I22","v":0},{"$f":"'PART II Data'!J22","v":0},{"$f":"'PART II Data'!K22","v":0},{"$f":"'PART II Data'!L22","v":0},{"$f":"'PART III Calculation'!I3","v":"0"},{"$f":"'PART III Calculation'!I4","v":0},{"$f":"'PART III Calculation'!I5","v":{"$error":"#DIV/0!"}},{"$f":"'PART III Calculation'!I6","v":"FY19 Entitlement Amount"},{"$f":"'PART III Calculation'!I7","v":""},{"$f":"'PART IV Consultation'!A4","v":0},{"$f":"'PART IV Consultation'!A11","v":0},{"$f":"'PART IV Consultation'!A17","v":0},null,"NO",{"$f":"'PART V Expenditures'!C14","v":0},{"$f":"'PART V Expenditures'!E14","v":0},{"$f":"'PART V Expenditures'!C15","v":0},{"$f":"'PART V Expenditures'!E15","v":0},{"$f":"'PART V Expenditures'!C16","v":0},{"$f":"'PART V Expenditures'!E16","v":0},{"$f":"'PART V Expenditures'!C17","v":0},{"$f":"'PART V Expenditures'!E17","v":0},{"$f":"'PART V Expenditures'!C18","v":0},{"$f":"'PART V Expenditures'!E18","v":0},{"$f":"'PART V Expenditures'!C19","v":0},{"$f":"'PART V Expenditures'!E19","v":0},{"$f":"'PART V Expenditures'!C20","v":0},{"$f":"'PART V Expenditures'!E20","v":0},{"$f":"'PART V Expenditures'!C22","v":0},{"$f":"'PART V Expenditures'!E22","v":0},{"$f":"'PART V Expenditures'!C23","v":0},{"$f":"FullName","v":0},{"$f":"Title","v":0},{"$f":"SignDate","v":"00:00:00"}]

{"sheet":"District Lookup List","index":7,"n_rows":450,"n_cols":17,"rows_kept":450,"cut":false,"hidden":true,"merged":[]}
[1,"FUNCTION","FIRST NAME","LAST NAME","ORGANIZATION NAME","ORGANIZATION CODE","ORGGANIZATION TYPE","ADDRESS LINE 1","ADDRESS LINE 2","CITY/TOWN","STATE","ZIP CODE","PHONE","FAX","EMAIL","Grade","FY19 Entitlement Amount"]
[2,"Charter School Leader","Brian","Haas","Abby Kelley Foster Charter Public (District)","04450000","Charter District","10 New Bond Street",null,"Worcester","MA","01606","508-854-8400","508-854-8484",null,"K,01,02,03,04,05,06,07,08,09,10,11,12",303341]
[3,"Superintendent","Peter","Schafer","Abington","00010000","Public School District","1071 Washington St.",null,"Abington","MA","02351","781-982-2150","781-982-2157",null,"PK,K,01,02,03,04,05,06,07,08,09,10,11,12",529393]
[4,"Charter School Leader","Spencer","Blasdale","Academy Of the Pacific Rim Charter Public (District)","04120000","Charter District","1 Westinghouse Plaza",null,"Hyde Park","MA","02136","617-361-0050","617-361-0045",null,"05,06,07,08,09,10,11,12",106901]
[5,"Superintendent","Peter","Light","Acton-Boxborough","06000000","Public School District","16 Charter Rd",null,"Acton","MA","01720","978-264-4700","978-264-3340",null,"PK,K,01,02,03,04,05,06,07,08,09,10,11,12",1264626]
[6,"Superintendent","Paula","Bailey","Acushnet","00030000","Public School District","708 Middle Road","Suite 1","Acushnet","MA","02743","508-998-0260","508-998-0262",null,"PK,K,01,02,03,04,05,06,07,08",263848]
[7,"Superintendent","John","Vosburgh","Adams-Cheshire","06030000","Public School District","191 Church St",null,"Cheshire","MA","01225","413-743-2939","413-743-4135",null,"PK,K,01,02,03,04,05,06,07,08,09,10,11,12",386122]
[8,"Charter School Leader","Anders","Lewis","Advanced Math and Science Academy Charter (District)","04300000","Charter District","201 Forest Street",null,"Marlborough","MA","01752","508-597-2400","508-597-2499",null,"06,07,08,09,10,11,12",168439]
[9,"Superintendent","Steven","Lemanski","Agawam","00050000","Public School District","1305 Springfield St","Suite 1","Feeding Hills","MA","01030","413-821-0548","413-789-1835",null,"PK,K,01,02,03,04,05,06,07,08,09,10,11,12",1133536]
[10,"Charter School Leader","Will","Gardner","Alma del Mar Charter School (District)","04090000","Charter District","26 Madeira Avenue",null,"New Bedford","MA","02746","508-542-7153","877-719-8773",null,"K,01,02,03,04,05,06,07,08",105014]
[11,"Superintendent","Gary","Reese","Amesbury","00070000","Public School District","5 Highland Street",null,"Amesbury","MA","01913","978-388-0507","978-388-8315",null,"PK,K,01,02,03,04,05,06,07,08,09,10,11,12",606080]
[12,"Superintendent","Michael","Morris","Amherst","00080000","Public School District","170 Chestnut Street",null,"Amherst","MA","01002","413-362-1810","413-549-6108",null,"PK,K,01,02,03,04,05,06",370430]
[13,"Superintendent","Michael","Morris","Amherst-Pelham","06050000","Public School District","170 Chestnut Street",null,"Amherst","MA","01002","413-362-1810","413-549-6108",null,"07,08,09,10,11,12",421252]
[14,"Superintendent","Sheldon","Berman","Andover","00090000","Public School District","36 Bartlet Street",null,"Andover","MA","01810","978-623-8501","978-623-8505",null,"PK,K,01,02,03,04,05,06,07,08,09,10,11,12",1392638]
[15,"Charter School Leader","Kristen","Pavao","Argosy Collegiate Charter School (District)","35090000","Charter District","263 Hamlet Street",null,"Fall River","MA","02724","508-567-4725","774-365-4383",null,"06,07,08,09",115114]
[16,"Superintendent","Kathleen","Bodie","Arlington","00100000","Public School District","869 Massachusetts Avenue",null,"Arlington","MA","02476","781-316-3523","781-316-3509",null,"PK,K,01,02,03,04,05,06,07,08,09,10,11,12",1492435]
[17,"Superintendent","Gary","Mazzola","Ashburnham-Westminster","06100000","Public School District","11 Oakmont Drive",null,"Ashburnham","MA","01430","978-827-1434","978-827-5969",null,"PK,K,01,02,03,04,05,06,07,08,09,10,11,12",594455]
[18,"Superintendent","James","Adams","Ashland","00140000","Public School District","87 West Union Street",null,"Ashland","MA","01721","508-881-0150","508-881-0161",null,"PK,K,01,02,03,04,05,06,07,08,09,10,11,12",594117]
[19,"Superintendent","Ernest","Houle","Assabet Valley Regional Vocational Technical","08010000","Public School District","215 Fitchburg Street",null,"Marlborough","MA","01752","508-485-9430","508-460-3472",null,"09,10,11,12",296171]
[20,"Superintendent","Darcy","Fernandes","Athol-Royalston","06150000","Public School District","1062 Pleasant Street",null,"Athol","MA","01331","978-249-2400","978-249-2402",null,"PK,K,01,02,03,04,05,06,07,08,09,10,11,12",460471]
[21,"Charter School Leader","Robert","Beatty","Atlantis Charter (District)","04910000","Charter District","991 Jefferson St",null,"Fall River","MA","02721","508-646-6410","508-672-3489",null,"K,01,02,03,04,05,06,07,08,09,10,11,12",271044]
[22,"Superintendent","David","Sawyer","Attleboro","00160000","Public School District","100 Rathbun Willard Drive",null,"Attleboro","MA","02703","508-222-0012","508-223-1577",null,"PK,K,01,02,03,04,05,06,07,08,09,10,11,12",1688487]
[23,"Superintendent","Maryellen","Brunelle","Auburn","00170000","Public School District","5 West Street",null,"Auburn","MA","01501","508-832-7755","508-832-7757",null,"PK,K,01,02,03,04,05,06,07,08,09,10,11,12",553715]
[24,"Superintendent","Paul","Zinni","Avon","00180000","Public School District","1 Patrick Clark Drive",null,"Avon","MA","02322","508-588-0230","508-559-1081",null,"PK,K,01,02,03,04,05,06,07,08,09,10,11,12",181834]
[25,"Superintendent","Mary","Malone","Ayer Shirley School District","06160000","Public School District","115 Washington Street",null,"Ayer","MA","01432","978-772-8600","978-772-1863",null,"PK,K,01,02,03,04,05,06,07,08,09,10,11,12",474639]
[26,"Superintendent","Meg","Mayo-Brown","Barnstable","00200000","Public School District","P O Box 955",null,"Hyannis","MA","02601","508-862-4953","508-790-6454",null,"PK,K,01,02,03,04,05,06,07,08,09,10,11,12",1563205]
[27,"Charter School Leader","Sheila","Kukstis","Barnstable Community Horace Mann Charter Public (District)","04270000","Charter District","165 Bearses Way",null,"Hyannis","MA","02601","508-790-6485","508-790-6432",null,"K,01,02,03",77535]
[28,"Charter School Leader","Timothy","Sneed","Baystate Academy Charter Public School (District)","35020000","Charter District","2001 Roosevelt Avenue",null,"Springfield","MA","01104","413-366-5103","413-366-5101",null,"06,07,08,09,10,11",124317]
[29,"Superintendent","Jonathan","Sills","Bedford","00230000","Public School District","97 McMahon Road",null,"Bedford","MA","01730","781-275-7588","781-275-0885",null,"PK,K,01,02,03,04,05,06,07,08,09,10,11,12",595403]
[30,"Superintendent","Karol","Coffin","Belchertown","00240000","Public School District","PO Box 841",null,"Belchertown","MA","01007","413-323-0423","413-323-0448",null,"PK,K,01,02,03,04,05,06,07,08,09,10,11,12",550696]
[31,"Superintendent","Peter","Marano","Bellingham","00250000","Public School District","4 Mechanic Street",null,"Bellingham","MA","02019","508-883-1706","508-966-2402",null,"PK,K,01,02,03,04,05,06,07,08,09,10,11,12",661341]
[32,"Superintendent","John","Phelan","Belmont","00260000","Public School District","644 Pleasant Street",null,"Belmont","MA","02478","617-993-5401","617-993-5409",null,"PK,K,01,02,03,04,05,06,07,08,09,10,11,12",1078532]
[33,"Charter School Leader","Sherley","Bretous-Carre","Benjamin Banneker Charter Public (District)","04200000","Charter District","21 Notre Dame Avenue",null,"Cambridge","MA","02140","617-497-7771","617-497-4223",null,"PK,K,01,02,03,04,05,06",80286]
[34,"Charter School Leader","Heather","Zolnowski","Benjamin Franklin Classical Charter Public (District)","04470000","Charter District","201 Main Street",null,"Franklin","MA","02038","508-541-3434","508-541-5396",null,"K,01,02,03,04,05,06,07,08",87419]
[35,"Charter School Leader","Marlena","Afonso","Bentley Academy Charter School (District)","35110000","Charter District","25 Memorial Drive",null,"Salem","MA","01970","978-740-1260","978-740-1164",null,"K,01,02,03,04,05",85663]
[36,"Superintendent","Thomas","Lynch","Berkley","00270000","Public School District","21 North Main Street",null,"Berkley","MA","02779","508-822-5220","508-823-1772",null,"PK,K,01,02,03,04,05,06,07,08",224520]
[37,"Charter School Leader","James","White","Berkshire Arts and Technology Charter Public (District)","04140000","Charter District","1 Commercial Pl","PO Box 267","Adams","MA","01220","413-743-7311","413-743-7327",null,"06,07,08,09,10,11,12",84896]
[38,"Superintendent","Peter","Dillon","Berkshire Hills","06180000","Public School District","50 Main Street","PO Box 617","Stockbridge","MA","01262","413-298-4017","413-298-4017",null,"PK,K,01,02,03,04,05,06,07,08,09,10,11,12",436918]
[39,"Superintendent","Jeffrey","Zanghi","Berlin","00280000","Public School District","215 Main Street",null,"Boylston","MA","01505","508-869-2837","508-869-0023",null,"PK,K,01,02,03,04,05",49111]
[40,"Superintendent","Jeffrey","Zanghi","Berlin-Boylston","06200000","Public School District","215 Main Street",null,"Boylston","MA","01505","508-869-2837","508-869-0023",null,"06,07,08,09,10,11,12",126735]
[41,"Superintendent","Steven","Hiersche","Beverly","00300000","Public School District","70 Balch St.",null,"Beverly","MA","01915","978-921-6100","978-922-6597",null,"PK,K,01,02,03,04,05,06,07,08,09,10,11,12",1448081]
[42,"Superintendent","Timothy","Piwowar","Billerica","00310000","Public School District","365 Boston Rd",null,"Billerica","MA","01821","978-528-7900","978-436-9595",null,"PK,K,01,02,03,04,05,06,07,08,09,10,11,12",1243010]
[43,"Superintendent","Michael","Fitzpatrick","Blackstone Valley Regional Vocational Technical","08050000","Public School District","65 Pleasant Street",null,"Upton","MA","01568","508-529-7758","508-529-3079",null,"09,10,11,12",298440]
[44,"Superintendent","Jason","Defalco","Blackstone-Millville","06220000","Public School District","175 Lincoln Street",null,"Blackstone","MA","01504","508-883-4400","508-883-9892",null,"PK,K,01,02,03,04,05,06,07,08,09,10,11,12",439843]
[45,"Superintendent","James","Quaglia","Blue Hills Regional Vocational Technical","08060000","Public School District","800 Randolph Street",null,"Canton","MA","02021","781-828-5800","781-828-3872",null,"09,10,11,12",263318]
[46,"Superintendent","Laura","Perille","Boston","00350000","Public School District","2300 Washington Street",null,"Roxbury","MA","02119","617-635-9050","617-635-9059",null,"PK,K,01,02,03,04,05,06,07,08,09,10,11,12",17562190]
[47,"Charter School Leader","Shannah","Varon","Boston Collegiate Charter (District)","04490000","Charter District","11 Mayhew Street",null,"Dorchester","MA","02125","617-265-1172","617-265-1176",null,"05,06,07,08,09,10,11,12",162590]
[48,"Charter School Leader","Alison","Hramiec","Boston Day and Evening Academy Charter (District)","04240000","Charter District","20 Kearsarge Ave",null,"Roxbury","MA","02119","617-635-6789","617-635-6380",null,"09,10,11,12",85382]
[49,"Charter School Leader","Matthew","Holzer","Boston Green Academy Horace Mann Charter School (District)","04110000","Charter District","20 Warren St.",null,"Brighton","MA","02135","617-635-9860","617-635-9858",null,"06,07,08,09,10,11,12",152894]
[50,"Charter School Leader","Sharon","Liszanckie","Boston Preparatory Charter Public (District)","04160000","Charter District","885 River Street",null,"Hyde Park","MA","02136","617-333-6688","617-333-6689",null,"06,07,08,09,10,11,12",141884]
[51,"Charter School Leader","Alexandra","Banhares-Buckmire","Boston Renaissance Charter Public (District)","04810000","Charter District","1415 Hyde Park Ave",null,"Hyde Park","MA","02136","617-357-0900","617-357-0949",null,"PK,K,01,02,03,04,05,06",236503]
[52,"Superintendent","Steven","Lamarche","Bourne","00360000","Public School District","36 Sandwich Rd",null,"Bourne","MA","02532","508-759-0660","508-759-1107",null,"PK,K,01,02,03,04,05,06,07,08,09,10,11,12",504912]
[53,"Superintendent","Scott","Morrison","Boxford","00380000","Public School District","28 Middleton Road",null,"Boxford","MA","01921","978-887-0771","978-887-8042",null,"PK,K,01,02,03,04,05,06",174255]
[54,"Superintendent","Jeffrey","Zanghi","Boylston","00390000","Public School District","215 Main Street",null,"Boylston","MA","01505","508-869-2837","508-869-0023",null,"PK,K,01,02,03,04,05",79292]
[55,"Superintendent","Frank","Hackett","Braintree","00400000","Public School District","348 Pond Street",null,"Braintree","MA","02184","781-380-0130","781-380-0146",null,"PK,K,01,02,03,04,05,06,07,08,09,10,11,12",1603506]
[56,"Superintendent","Thomas","Conrad","Brewster","00410000","Public School District","78 Eldredge Pkwy",null,"Orleans","MA","02653","508-255-8800","508-240-2351",null,"PK,K,01,02,03,04,05",134586]
[57,"Charter School Leader","Yully","Cha","Bridge Boston Charter School (District)","04170000","Charter District","435 Warren St.",null,"Roxbury","MA","02119","857-229-1601","--",null,"PK,K,01,02,03,04,05,06",99997]
[58,"Superintendent","Derek","Swenson","Bridgewater-Raynham","06250000","Public School District","166 Mt. Prospect Street",null,"Bridgewater","MA","02324","508-279-2140","508-697-7012",null,"PK,K,01,02,03,04,05,06,07,08,09,10,11,12",1285266]
[59,"Superintendent","Erin","Nosek","Brimfield","00430000","Public School District","320A Brookfield Rd",null,"Fiskdale","MA","01518","508-347-3077","508-347-2697",null,"PK,K,01,02,03,04,05,06",76536]
[60,"Superintendent","Adele","Sands","Bristol County Agricultural","09100000","Public School District","135 Center Street",null,"Dighton","MA","02715","508-669-6744","508-669-6747",null,"09,10,11,12",105893]
[61,"Superintendent","Alexandre","Magalhaes","Bristol-Plymouth Regional Vocational Technical","08100000","Public School District","207 Hart Street",null,"Taunton","MA","02780","508-823-5151","508-880-7287",null,"09,10,11,12",309443]
[62,"Superintendent","Kathleen","Smith","Brockton","00440000","Public School District","43 Crescent Street",null,"Brockton","MA","02301","508-580-7000","508-580-7513",null,"PK,K,01,02,03,04,05,06,07,08,09,10,11,12",4436055]
[63,"Charter School Leader","Kimberly","Steadman","Brooke Charter School (District)","04280000","Charter District","190 Cummins Highway",null,"Roslindale","MA","02131","617-325-7977","617-325-2260",null,"K,01,02,03,04,05,06,07,08,09,10",382594]
[64,"Superintendent","Erin","Nosek","Brookfield","00450000","Public School District","320 Brookfield Rd",null,"Fiskdale","MA","01518","508-347-3077","508-347-2697",null,"PK,K,01,02,03,04,05,06",83825]
[65,"Superintendent","Andrew","Bott","Brookline","00460000","Public School District","333 Washington Street",null,"Brookline","MA","02445","617-730-2403","617-730-2601",null,"PK,K,01,02,03,04,05,06,07,08,09,10,11,12",2100269]
[66,"Superintendent","Eric","Conti","Burlington","00480000","Public School District","123 Cambridge Street",null,"Burlington","MA","01803","781-270-1801","781-270-1773",null,"PK,K,01,02,03,04,05,06,07,08,09,10,11,12",881603]
[67,"Superintendent","Kenneth","Salim","Cambridge","00490000","Public School District","159 Thorndike Street",null,"Cambridge","MA","02141","617-349-6494","617-349-6496",null,"PK,K,01,02,03,04,05,06,07,08,09,10,11,12",2619251]
[68,"Superintendent","Jennifer","Fischer-Mueller","Canton","00500000","Public School District","960 Washington Street",null,"Canton","MA","02021","781-821-5060","781-575-6500",null,"PK,K,01,02,03,04,05,06,07,08,09,10,11,12",832974]
[69,"Charter School Leader","Paul","Niles","Cape Cod Lighthouse Charter (District)","04320000","Charter District","195 Route 137",null,"East Harwich","MA","02645","774-408-7994","774-237-9041",null,"06,07,08",43109]
[70,"Superintendent","Robert","Sanborn","Cape Cod Regional Vocational Technical","08150000","Public School District","351 Pleasant Lake Avenue",null,"Harwich","MA","02645","508-432-4500","508-432-7916",null,"09,10,11,12",213365]
[71,"Superintendent","James","O'Shea","Carlisle","00510000","Public School District","83 School Street",null,"Carlisle","MA","01741","978-369-6550","978-371-2400",null,"PK,K,01,02,03,04,05,06,07,08",142882]
[72,"Superintendent","Scott","Knief","Carver","00520000","Public School District","3 Carver Square Blvd.",null,"Carver","MA","02330","508-866-6160","508-866-2920",null,"PK,K,01,02,03,04,05,06,07,08,09,10,11,12",494109]
[73,"Superintendent","Laurie","Casna","Central Berkshire","06350000","Public School District","PO Box 299","Rt 8","Dalton","MA","01227","413-684-0320","413-684-4088",null,"PK,K,01,02,03,04,05,06,07,08,09,10,11,12",477841]
[74,"Superintendent","Roger","Lang","Chelmsford","00560000","Public School District","230 North Road",null,"Chelmsford","MA","01824","978-251-5100","978-251-5110",null,"PK,K,01,02,03,04,05,06,07,08,09,10,11,12",1217493]
[75,"Superintendent","Mary","Bourque","Chelsea","00570000","Public School District","500 Broadway Street","c/o City Hall Room 216","Chelsea","MA","02150","617-466-4477","617-889-8361",null,"PK,K,01,02,03,04,05,06,07,08,09,10,11,12",1541287]
[76,"Superintendent","Aaron","Osborne","Chesterfield-Goshen","06320000","Public School District","19 Stage Rd",null,"Westhampton","MA","01027","413-527-7200","413-529-9497",null,"PK,K,01,02,03,04,05,06",42711]
[77,"Superintendent","Richard","Rege","Chicopee","00610000","Public School District","180 Broadway Street",null,"Chicopee","MA","01020","413-594-3410","413-594-3552",null,"PK,K,01,02,03,04,05,06,07,08,09,10,11,12",2350240]
[78,"Charter School Leader","Kristin","Harrison","Christa McAuliffe Charter Public (District)","04180000","Charter District","139 Newbury St",null,"Framingham","MA","01701","508-879-9000","508-471-3135",null,"06,07,08",96557]
[79,"Charter School Leader","Kevin","Taylor","City on a Hill Charter Public School Circuit Street (District)","04370000","Charter District","15 Allerton Street","Suite 1","Boston","MA","02119","617-533-9457","--",null,"09,10,11,12",67266]
[80,"Charter School Leader","Kevin","Taylor","City on a Hill Charter Public School Dudley Square (District)","35040000","Charter District","15 Allerton Street","Suite 1","Boston","MA","02119","617-533-9457","--",null,"09,10,11,12",93102]
[81,"Charter School Leader","Kevin","Taylor","City on a Hill Charter Public School New Bedford (District)","35070000","Charter District","15 Allerton Street","Suite 1","Boston","MA","02119","617-533-9457","--",null,"09,10,11,12",77088]
[82,"Superintendent","John","Franzoni","Clarksburg","00630000","Public School District","777 West Crossroad",null,"Clarksburg","MA","01247","413-664-8735","413-664-8735",null,"K,01,02,03,04,05,06,07,08",55151]
[83,"Superintendent","Steven","Meyer","Clinton","00640000","Public School District","150 School Street",null,"Clinton","MA","01510","978-365-4200","978-365-5037",null,"PK,K,01,02,03,04,05,06,07,08,09,10,11,12",507577]
[84,"Charter School Leader","Thabiti","Brown","Codman Academy Charter Public (District)","04380000","Charter District","637 Washington Street",null,"Dorchester","MA","02124","617-287-0700","617-287-9064",null,"PK,K,01,02,03,04,05,06,07,08,09,10,11,12",110872]
[85,"Superintendent","Louise","Demas","Cohasset","00650000","Public School District","143 Pond Street",null,"Cohasset","MA","02025","781-383-6112","781-383-6507",null,"PK,K,01,02,03,04,05,06,07,08,09,10,11,12",336670]
[86,"Charter School Leader","Laurie","Hodgdon","Collegiate Charter School of Lowell (District)","35030000","Charter District","1857 Middlesex Street",null,"Lowell","MA","01851","978-458-1399","978-458-1366",null,"K,01,02,03,04,05,06,07",177745]
[87,"Charter School Leader","Caleb","Hurst-Hiller","Community Charter School of Cambridge (District)","04360000","Charter District","245 Bent Street",null,"Cambridge","MA","02141","617-354-0047","617-354-3624",null,"06,07,08,09,10,11,12",92064]
[88,"Charter School Leader","Mary","Chance","Community Day Charter Public School - Gateway (District)","04260000","Charter District","190 Hampshire Street",null,"Lawrence","MA","01840","978-722-2538","978-686-9382",null,"PK,K,01,02,03,04,05,06",65572]
[89,"Charter School Leader","Mary","Chance","Community Day Charter Public School - Prospect (District)","04400000","Charter District","190 Hampshire Street",null,"Lawrence","MA","01840","978-722-2538","978-681-5838",null,"PK,K,01,02,03,04,05,06,07,08",91156]
[90,"Charter School Leader","Mary","Chance","Community Day Charter Public School - R. Kingman Webster (District)","04310000","Charter District","190 Hampshire Street",null,"Lawrence","MA","01840","978-686-9327","978-687-0513",null,"PK,K,01,02,03,04,05,06",66630]
[91,"Superintendent","Laurie","Hunter","Concord","00670000","Public School District","120 Meriam Rd",null,"Concord","MA","01742","978-318-1500","978-318-1537",null,"PK,K,01,02,03,04,05,06,07,08",484996]
[92,"Superintendent","Laurie","Hunter","Concord-Carlisle","06400000","Public School District","120 Meriam Rd",null,"Concord","MA","01742","978-341-2490","978-318-1537",null,"09,10,11,12",308817]
[93,"Charter School Leader","John","Chistolini","Conservatory Lab Charter (District)","04390000","Charter District","2120 Dorchester Avenue",null,"Dorchester","MA","02124","617-254-8904","617-254-8909",null,"PK,K,01,02,03,04,05,06,07,08",103105]
[94,"Superintendent","Darius","Modestow","Conway","00680000","Public School District","113 North Main Street, Office C101",null,"South Deerfield","MA","01373","413-665-1155","413-665-8506",null,"PK,K,01,02,03,04,05,06",36201]
[95,"Superintendent","Lisa","Dana","Danvers","00710000","Public School District","64 Cabot Road",null,"Danvers","MA","01923","978-777-4539","978-777-8931",null,"PK,K,01,02,03,04,05,06,07,08,09,10,11,12",1099950]
[96,"Superintendent","Bonny","Gifford","Dartmouth","00720000","Public School District","8 Bush Street",null,"Dartmouth","MA","02748","508-997-3391","508-991-4184",null,"PK,K,01,02,03,04,05,06,07,08,09,10,11,12",972477]
[97,"Superintendent","Michael","Welch","Dedham","00730000","Public School District","100 Whiting Avenue",null,"Dedham","MA","02026","781-310-1000","781-320-0193",null,"PK,K,01,02,03,04,05,06,07,08,09,10,11,12",888334]
[98,"Superintendent","Darius","Modestow","Deerfield","00740000","Public School District","113 North Main Street, Office C101",null,"South Deerfield","MA","01373","413-665-1155","413-665-8506",null,"PK,K,01,02,03,04,05,06",109699]
[99,"Superintendent","Carol","Woodbury","Dennis-Yarmouth","06450000","Public School District","296 Station Avenue",null,"South Yarmouth","MA","02664","508-398-7600","508-398-7622",null,"PK,K,01,02,03,04,05,06,07,08,09,10,11,12",852789]
[100,"Superintendent","Anthony","Azar","Dighton-Rehoboth","06500000","Public School District","2700 Regional Road",null,"North Dighton","MA","02764","508-252-5000","508-252-5024",null,"PK,K,01,02,03,04,05,06,07,08,09,10,11,12",718887]
[101,"Superintendent","Kevin","Maines","Douglas","00770000","Public School District","21 Davis Street",null,"Douglas","MA","01516","508-476-7901","508-476-4423",null,"PK,K,01,02,03,04,05,06,07,08,09,10,11,12",283254]
[102,"Superintendent","Andrew","Keough","Dover","00780000","Public School District","157 Farm Street",null,"Dover","MA","02030","508-785-0036","508-785-2239",null,"PK,K,01,02,03,04,05",135806]
[103,"Superintendent","Andrew","Keough","Dover-Sherborn","06550000","Public School District","157 Farm Street",null,"Dover","MA","02030","508-785-0036","508-785-2239",null,"06,07,08,09,10,11,12",247027]
[104,"Superintendent","Steven","Stone","Dracut","00790000","Public School District","2063 Lakeview Avenue",null,"Dracut","MA","01826","978-957-2660","978-957-2682",null,"PK,K,01,02,03,04,05,06,07,08,09,10,11,12",935145]
[105,"Charter School Leader","Dawn","Lewis","Dudley Street Neighborhood Charter School (District)","04070000","Charter District","6 Shirley Street",null,"Boston","MA","02119","617-635-8507","617-635-6320",null,"PK,K,01,02,03,04,05",74040]
[106,"Superintendent","Kristine","Nash","Dudley-Charlton Reg","06580000","Public School District","68 Dudley Oxford Road",null,"Dudley","MA","01571","508-943-6888","508-943-1077",null,"PK,K,01,02,03,04,05,06,07,08,09,10,11,12",872815]
[107,"Superintendent","John","Antonucci","Duxbury","00820000","Public School District","93 Chandler Street",null,"Duxbury","MA","02332","781-934-7600","781-934-7644",null,"PK,K,01,02,03,04,05,06,07,08,09,10,11,12",718734]
[108,"Superintendent","Elizabeth","Legault","East Bridgewater","00830000","Public School District","143 Plymouth Street",null,"East Bridgewater","MA","02333","508-378-8200","508-378-8225",null,"PK,K,01,02,03,04,05,06,07,08,09,10,11,12",526225]
[109,"Superintendent","Gordon","Smith","East Longmeadow","00870000","Public School District","180 Maple Street",null,"East Longmeadow","MA","01028","413-525-5450","413-525-5456",null,"PK,K,01,02,03,04,05,06,07,08,09,10,11,12",781157]
[110,"Superintendent","Thomas","Conrad","Eastham","00850000","Public School District","78 Eldredge Pkwy",null,"Orleans","MA","02653","508-255-8800","508-240-2351",null,"PK,K,01,02,03,04,05",53160]
[111,"Superintendent","Allison","Leclair","Easthampton","00860000","Public School District","50 Payson Avenue","Second Floor","Easthampton","MA","01027","413-529-1500","413-529-1567",null,"PK,K,01,02,03,04,05,06,07,08,09,10,11,12",494697]
[112,"Superintendent","Lisha","Cabral","Easton","00880000","Public School District","PO Box 359",null,"North Easton","MA","02356","508-230-3200","508-238-3563",null,"PK,K,01,02,03,04,05,06,07,08,09,10,11,12",894063]
[113,"Superintendent","Matthew","D'Andrea","Edgartown","00890000","Public School District","4 Pine Street",null,"Vineyard Haven","MA","02568","508-693-2007","508-693-3190",null,"PK,K,01,02,03,04,05,06,07,08",101032]
[114,"Charter School Leader","Caren","Walker","Edward M. Kennedy Academy for Health Careers (Horace Mann Charter) (District)","04520000","Charter District","360 Huntington Avenue","c/o 102 Cahners Hall","Boston","MA","02115","617-373-8576","617-373-7850",null,"09,10,11,12",96513]
[115,"Superintendent","Jennifer","Haggerty","Erving","00910000","Public School District","18 Pleasant Street",null,"Erving","MA","01344","413-423-3337","413-423-3236",null,"PK,K,01,02,03,04,05,06",49531]
[116,"Superintendent","Heidi","Riccio","Essex North Shore Agricultural and Technical School District","08170000","Public School District","565 Maple Street","P.O. Box 346","Hathorne","MA","01937","978-304-4700","--",null,"09,10,11,12",349633]
[117,"Superintendent","Frederick","Foresteire","Everett","00930000","Public School District","121 Vine Street",null,"Everett","MA","02149","617-389-7950","617-394-2408",null,"PK,K,01,02,03,04,05,06,07,08,09,10,11,12",1855408]
[118,"Charter School Leader","Owen","Stearns","Excel Academy Charter (District)","04100000","Charter District","58 Moore Street",null,"East Boston","MA","02128","617-874-4080","617-516-1603",null,"05,06,07,08,09,10,11",309115]
[119,"Superintendent","Robert","Baldwin","Fairhaven","00940000","Public School District","128 Washington Street",null,"Fairhaven","MA","02719","508-979-4000","508-979-4149",null,"PK,K,01,02,03,04,05,06,07,08,09,10,11,12",534109]
[120,"Superintendent","Matthew","Malone","Fall River","00950000","Public School District","417 Rock Street",null,"Fall River","MA","02720","508-675-8420","508-675-8462",null,"PK,K,01,02,03,04,05,06,07,08,09,10,11,12",3155890]
[121,"Superintendent","Lori","Duerr","Falmouth","00960000","Public School District","340 Teaticket Hwy",null,"East Falmouth","MA","02536","508-548-0151","508-457-9032",null,"PK,K,01,02,03,04,05,06,07,08,09,10,11,12",920765]
[122,"Superintendent","Thomas","Nadolny","Farmington River Reg","06620000","Public School District","555 N Main Street","PO Box 679","Otis","MA","01253","413-269-4466","413-269-7659",null,"PK,K,01,02,03,04,05,06",54758]
[123,"Superintendent","Andre","Ravenelle","Fitchburg","00970000","Public School District","376 South Street",null,"Fitchburg","MA","01420","978-345-3200","978-348-2305",null,"PK,K,01,02,03,04,05,06,07,08,09,10,11,12",1560181]
[124,"Superintendent","Heidi","Dugal","Florida","00980000","Public School District","56 North County Rd",null,"Florida","MA","01247","413-664-6023","413-663-3593",null,"PK,K,01,02,03,04,05,06,07,08",31647]
[125,"Charter School Leader","Peter","Garbus","Four Rivers Charter Public (District)","04130000","Charter District","248 Colrain Road",null,"Greenfield","MA","01301","413-775-4577","413-775-4578",null,"07,08,09,10,11,12",47803]
[126,"Superintendent","Amy","Berdos","Foxborough","00990000","Public School District","60 South Street","C/O Igo Administration Building","Foxborough","MA","02035","508-543-1660","508-543-4793",null,"PK,K,01,02,03,04,05,06,07,08,09,10,11,12",694652]
[127,"Charter School Leader","Mark","Logan","Foxborough Regional Charter (District)","04460000","Charter District","131 Central Street","35 Commercial Street","Foxborough","MA","02035","508-543-2508","508-543-7982",null,"K,01,02,03,04,05,06,07,08,09,10,11,12",305646]
[128,"Superintendent","Robert","Tremblay","Framingham","01000000","Public School District","73 Mt. Wayte Avenue","Suite 5","Framingham","MA","01702","508-626-9118","508-877-4240",null,"PK,K,01,02,03,04,05,06,07,08,09,10,11,12",2324238]
[129,"Charter School Leader","Todd","Sumner","Francis W. Parker Charter Essential (District)","04780000","Charter District","49 Antietam Street",null,"Devens","MA","01434","978-772-3293","978-772-3295",null,"07,08,09,10,11,12",70901]
[130,"Superintendent","Sara","Ahern","Franklin","01010000","Public School District","355 East Central Street",null,"Franklin","MA","02038","508-541-5243","508-553-0321",null,"PK,K,01,02,03,04,05,06,07,08,09,10,11,12",1153784]
[131,"Superintendent","Richard","Martin","Franklin County Regional Vocational Technical","08180000","Public School District","82 Industrial Blvd",null,"Turners Falls","MA","01376","413-863-9561","413-863-2816",null,"09,10,11,12",166020]
[132,"Superintendent","Richard","Medeiros","Freetown-Lakeville","06650000","Public School District","98 Howland Rd",null,"Lakeville","MA","02347","508-923-2000","508-923-0934",null,"PK,K,01,02,03,04,05,06,07,08,09,10,11,12",721976]
[133,"Superintendent","Darius","Modestow","Frontier","06700000","Public School District","113 North Main Street, Office C101",null,"South Deerfield","MA","01373","413-665-1155","413-665-8506",null,"07,08,09,10,11,12",285439]
[134,"Superintendent","Mark","Pellegrino","Gardner","01030000","Public School District","70 Waterford Street",null,"Gardner","MA","01440","978-632-1000","978-632-1164",null,"PK,K,01,02,03,04,05,06,07,08,09,10,11,12",744718]
[135,"Superintendent","David","Hopson","Gateway","06720000","Public School District","12 Littleville Road",null,"Huntington","MA","01050","413-685-1000","413-667-8739",null,"PK,K,01,02,03,04,05,06,07,08,09,10,11,12",287003]
[136,"Superintendent","Carol","Jacobs","Georgetown","01050000","Public School District","51 North Street",null,"Georgetown","MA","01833","978-352-5777","978-352-5778",null,"PK,K,01,02,03,04,05,06,07,08,09,10,11,12",307452]
[137,"Superintendent","Michael","Sullivan","Gill-Montague","06740000","Public School District","35 Crocker Avenue",null,"Turners Falls","MA","01376","413-863-9324","413-863-4560",null,"PK,K,01,02,03,04,05,06,07,08,09,10,11,12",364384]
[138,"Charter School Leader","Stephen","Furtado","Global Learning Charter Public (District)","04960000","Charter District","190 Ashley Boulevard",null,"New Bedford","MA","02746","508-991-4105","508-991-4110",null,"05,06,07,08,09,10,11,12",116192]
[139,"Superintendent","Richard","Safier","Gloucester","01070000","Public School District","2 Blackburn Drive",null,"Gloucester","MA","01930","978-281-9800","978-281-9899",null,"PK,K,01,02,03,04,05,06,07,08,09,10,11,12",888671]
[140,"Superintendent","Margaret","Frieswyk","Gosnold","01090000","Public School District","263 Hill & Plain Road",null,"East Falmouth","MA","02536","508-400-4687","--",null,"07,08",799]
[141,"Superintendent","James","Cummings","Grafton","01100000","Public School District","30 Providence Rd",null,"Grafton","MA","01519","508-839-5421","508-839-7618",null,"PK,K,01,02,03,04,05,06,07,08,09,10,11,12",631043]
[142,"Superintendent","Sheryl","Stanton","Granby","01110000","Public School District","387 East State Street",null,"Granby","MA","01033","413-467-7193","413-467-3909",null,"PK,K,01,02,03,04,05,06,07,08,09,10,11,12",237385]
[143,"Superintendent","Thomas","Aubin","Greater Fall River Regional Vocational Technical","08210000","Public School District","251 Stonehaven Rd",null,"Fall River","MA","02723","508-678-2891","508-679-6423",null,"09,10,11,12",346029]
[144,"Superintendent","John","Lavoie","Greater Lawrence Regional Vocational Technical","08230000","Public School District","57 River Rd",null,"Andover","MA","01810","978-686-0194","978-687-6209",null,"09,10,11,12",393055]
[145,"Superintendent","Joseph","Mastrocola","Greater Lowell Regional Vocational Technical","08280000","Public School District","250 Pawtucket Blvd",null,"Tyngsborough","MA","01879","978-441-4800","978-441-5353",null,"09,10,11,12",732817]
[146,"Superintendent","James","O'Brien","Greater New Bedford Regional Vocational Technical","08250000","Public School District","1121 Ashley Blvd",null,"New Bedford","MA","02745","508-998-3321","508-995-7268",null,"09,10,11,12",468010]
[147,"Superintendent","Jordana","Harper","Greenfield","01140000","Public School District","195 Federal Street, Suite 100",null,"Greenfield","MA","01301","413-772-1311","413-774-7940",null,"PK,K,01,02,03,04,05,06,07,08,09,10,11,12",575074]
[148,"Superintendent","Judith","Houle","Greenfield Commonwealth Virtual District","39010000","Public School District","278 Main St.","Ste. 205","Greenfield","MA","01301","413-475-3879","413-475-3909",null,"K,01,02,03,04,05,06,07,08,09,10,11,12",128768]
[149,"Superintendent","Laura","Chesson","Groton-Dunstable","06730000","Public School District","P O Box 729",null,"Groton","MA","01450","978-448-5505","978-448-9402",null,"PK,K,01,02,03,04,05,06,07,08,09,10,11,12",639083]
[150,"Superintendent","Anne","McKenzie","Hadley","01170000","Public School District","125 Russell Street",null,"Hadley","MA","01035","413-586-0822","413-582-6453",null,"PK,K,01,02,03,04,05,06,07,08,09,10,11,12",161360]
[151,"Superintendent","Joy","Blackwood","Halifax","01180000","Public School District","250 Pembroke Street",null,"Kingston","MA","02364","781-585-4313","781-585-2994",null,"K,01,02,03,04,05,06",170024]
[152,"Superintendent","Michael","Harvey","Hamilton-Wenham","06750000","Public School District","5 School Street",null,"Wenham","MA","01984","978-468-5310","978-468-7889",null,"PK,K,01,02,03,04,05,06,07,08,09,10,11,12",412450]
[153,"Charter School Leader","Tarkan","Topcuoglu","Hampden Charter School of Science East (District)","04990000","Charter District","20 Johnson Road",null,"Chicopee","MA","01022","413-593-9090","413-294-2648",null,"06,07,08,09,10,11,12",106678]
[154,"Superintendent","Albert","Ganem","Hampden-Wilbraham","06800000","Public School District","621 Main Street",null,"Wilbraham","MA","01095","413-596-3884","413-599-1328",null,"PK,K,01,02,03,04,05,06,07,08,09,10,11,12",884546]
[155,"Superintendent","Aaron","Osborne","Hampshire","06830000","Public School District","19 Stage Rd",null,"Westhampton","MA","01027","413-527-7200","413-529-9497",null,"07,08,09,10,11,12",197427]
[156,"Superintendent","Peter","Dillon","Hancock","01210000","Public School District","1831 STATE ROAD",null,"RICHMOND","MA","01254","413-698-4001","413-698-4003",null,"PK,K,01,02,03,04,05,06",17729]
[157,"Superintendent","Matthew","Ferron","Hanover","01220000","Public School District","188 Broadway Street",null,"Hanover","MA","02339","781-878-0786","781-871-3374",null,"PK,K,01,02,03,04,05,06,07,08,09,10,11,12",592548]
[158,"Superintendent","Linda","Dwight","Harvard","01250000","Public School District","39 Massachusetts Avenue",null,"Harvard","MA","01451","978-456-4140","978-456-8592",null,"PK,K,01,02,03,04,05,06,07,08,09,10,11,12",250253]
[159,"Superintendent","John","Robert","Hatfield","01270000","Public School District","34 School Street",null,"Hatfield","MA","01038","413-247-5641","413-247-0201",null,"PK,K,01,02,03,04,05,06,07,08,09,10,11,12",104113]
[160,"Superintendent","Margaret","Marotta","Haverhill","01280000","Public School District","4 Summer Street",null,"Haverhill","MA","01830","978-374-3405","978-373-1535",null,"PK,K,01,02,03,04,05,06,07,08,09,10,11,12",2345703]
[161,"Superintendent","Michael","Buoniconti","Hawlemont","06850000","Public School District","24 Ashfield Rd",null,"Shelburne Falls","MA","01370","413-625-0192","413-625-0196",null,"PK,K,01,02,03,04,05,06",50018]
[162,"Charter School Leader","Chris","Coblyn","Helen Y. Davis Leadership Academy Charter Public (District)","04190000","Charter District","23 Leonard Street",null,"Boston","MA","02122","617-474-7950","617-474-7957",null,"06,07,08",50398]
[163,"Charter School Leader","Jeanne","Schultz","Hill View Montessori Charter Public (District)","04550000","Charter District","75 Foundation Ave","Ward Hill Business Park","Haverhill","MA","01835","978-521-2616","978-521-2656",null,"K,01,02,03,04,05,06,07,08",69350]
[164,"Charter School Leader","Daniel","Klatz","Hilltown Cooperative Charter Public (District)","04500000","Charter District","1 Industrial Parkway",null,"Easthampton","MA","01039","413-529-7178","413-527-1530",null,"K,01,02,03,04,05,06,07,08",36852]
[165,"Superintendent","Dorothy","Galo","Hingham","01310000","Public School District","220 Central Street",null,"Hingham","MA","02043","781-741-1500","781-749-7457",null,"PK,K,01,02,03,04,05,06,07,08,09,10,11,12",968848]
[166,"Superintendent","Julie","Hamilton","Holbrook","01330000","Public School District","245 So. Franklin Street",null,"Holbrook","MA","02343","781-767-1226","781-767-1312",null,"PK,K,01,02,03,04,05,06,07,08,09,10,11,12",379951]
[167,"Superintendent","Erin","Nosek","Holland","01350000","Public School District","320 Brookfield Rd",null,"Fiskdale","MA","01518","508-347-3077","508-347-2697",null,"PK,K,01,02,03,04,05,06",61539]
[168,"Superintendent","Bradford","Jackson","Holliston","01360000","Public School District","370 Hollis Street",null,"Holliston","MA","01746","508-429-0654","508-429-0653",null,"PK,K,01,02,03,04,05,06,07,08,09,10,11,12",766470]
[169,"Superintendent","Stephen","Zrike","Holyoke","01370000","Public School District","57 Suffolk Street",null,"Holyoke","MA","01040","413-534-2005","413-534-2297",null,"PK,K,01,02,03,04,05,06,07,08,09,10,11,12",1885352]
[170,"Charter School Leader","Sonia","Pope","Holyoke Community Charter (District)","04530000","Charter District","2200 Northampton Street",null,"Holyoke","MA","01040","413-533-0111","413-536-5444",null,"K,01,02,03,04,05,06,07,08",177894]
[171,"Superintendent","Karen","Crebase","Hopedale","01380000","Public School District","25 Adin Street",null,"Hopedale","MA","01747","508-634-2220","508-478-1471",null,"PK,K,01,02,03,04,05,06,07,08,09,10,11,12",278151]
[172,"Superintendent","Carol","Cavanaugh","Hopkinton","01390000","Public School District","89 Hayden Rowe Street",null,"Hopkinton","MA","01748","508-417-9360","508-497-9833",null,"PK,K,01,02,03,04,05,06,07,08,09,10,11,12",705079]
[173,"Superintendent","Marco","Rodrigues","Hudson","01410000","Public School District","155 Apsley Street",null,"Hudson","MA","01749","978-567-6100","978-567-6123",null,"PK,K,01,02,03,04,05,06,07,08,09,10,11,12",726965]
[174,"Superintendent","Michael","Devine","Hull","01420000","Public School District","180 Harborview Road",null,"Hull","MA","02045","781-925-4400","781-925-8042",null,"PK,K,01,02,03,04,05,06,07,08,09,10,11,12",283520]
[175,"Charter School Leader","Gregory","Orpen","Innovation Academy Charter (District)","04350000","Charter District","72 Tyng Road",null,"Tyngsborough","MA","01879","978-649-0432","978-649-6337",null,"05,06,07,08,09,10,11,12",190908]
[176,"Superintendent","Brian","Blake","Ipswich","01440000","Public School District","1 Lord Square",null,"Ipswich","MA","01938","978-356-2935","978-356-0445",null,"PK,K,01,02,03,04,05,06,07,08,09,10,11,12",415462]
[177,"Superintendent","Paul","Zinni","King Philip","06900000","Public School District","18 King Street",null,"Norfolk","MA","02056","508-520-7991","508-520-2044",null,"07,08,09,10,11,12",426619]
[178,"Superintendent","Joy","Blackwood","Kingston","01450000","Public School District","250 Pembroke Street",null,"Kingston","MA","02364","781-585-4313","781-585-2994",null,"K,01,02,03,04,05,06",292093]
[179,"Charter School Leader","Caleb","Dolan","KIPP Academy Boston Charter School (District)","04630000","Charter District","37 Babson Street","KIPP Academy Boston","Mattapan","MA","02126","617-393-5682","617-652-7461",null,"K,01,02,03,05,06,07,08",177001]
[180,"Charter School Leader","Caleb","Dolan","KIPP Academy Lynn Charter (District)","04290000","Charter District","90 High Rock Street",null,"Lynn","MA","01902","781-598-1609","781-598-1639",null,"K,01,02,05,06,07,08,09,10,11,12",335243]
[181,"Superintendent","Kimberley","Grady","Lanesborough","01480000","Public School District","188 Summer Street",null,"Lanesborough","MA","01237","413-458-9582","413-458-2856",null,"PK,K,01,02,03,04,05,06",72243]
[182,"Superintendent","Mary","Bergeron","Lawrence","01490000","Public School District","237 Essex Street",null,"Lawrence","MA","01840","978-975-5905","978-722-8541",null,"PK,K,01,02,03,04,05,06,07,08,09,10,11,12",3713883]
[183,"Charter School Leader","Ralph","Carrero","Lawrence Family Development Charter (District)","04540000","Charter District","34 West Street",null,"Lawrence","MA","01841","978-689-9863","978-689-8133",null,"PK,K,01,02,03,04,05,06,07,08",150888]
[184,"Superintendent","H.","Eberwein","Lee","01500000","Public School District","300A Greylock St",null,"Lee","MA","01238","413-243-0276","413-243-4995",null,"PK,K,01,02,03,04,05,06,07,08,09,10,11,12",248666]
[185,"Superintendent","Marilyn","Tencza","Leicester","01510000","Public School District","1078 Main Street",null,"Leicester","MA","01524","508-892-7040","508-892-7043",null,"PK,K,01,02,03,04,05,06,07,08,09,10,11,12",432752]
[186,"Superintendent","Kimberly","Merrick","Lenox","01520000","Public School District","6 Walker Street",null,"Lenox","MA","01240","413-637-5550","413-637-5559",null,"PK,K,01,02,03,04,05,06,07,08,09,10,11,12",251829]
[187,"Superintendent","Paula","Deacon","Leominster","01530000","Public School District","24 Church Street",null,"Leominster","MA","01453","978-534-7700","978-534-7775",null,"PK,K,01,02,03,04,05,06,07,08,09,10,11,12",1741411]
[188,"Superintendent","Jennifer","Haggerty","Leverett","01540000","Public School District","18 Pleasant Street",null,"Erving","MA","01344","413-423-3337","413-423-3236",null,"PK,K,01,02,03,04,05,06",40574]
[189,"Superintendent","Julie","Hackett","Lexington","01550000","Public School District","146 Maple Street",null,"Lexington","MA","02420","781-861-2580","781-863-5829",null,"PK,K,01,02,03,04,05,06,07,08,09,10,11,12",1733278]
[190,"Charter School Leader","Modesto","Montero","Libertas Academy Charter School (District)","35140000","Charter District","146 Chestnut Street",null,"Springfield","MA","01103","413-342-5510","--",null,6,24636]
[191,"Superintendent","Rebecca","McFall","Lincoln","01570000","Public School District","1 Ballfield Road",null,"Lincoln","MA","01773","781-259-9409","781-259-9246",null,"PK,K,01,02,03,04,05,06,07,08",325717]
[192,"Superintendent","Bella","Wong","Lincoln-Sudbury","06950000","Public School District","390 Lincoln Rd",null,"Sudbury","MA","01776","978-443-9961","978-443-8824",null,"09,10,11,12",331960]
[193,"Superintendent","Kelly","Clenchy","Littleton","01580000","Public School District","PO Box 1486",null,"Littleton","MA","01460","978-540-2500","978-486-9581",null,"PK,K,01,02,03,04,05,06,07,08,09,10,11,12",353634]
[194,"Superintendent","Maurice","O'shea","Longmeadow","01590000","Public School District","535 Bliss Road",null,"Longmeadow","MA","01106","413-565-4200","413-565-4215",null,"PK,K,01,02,03,04,05,06,07,08,09,10,11,12",752961]
[195,"Superintendent","Salah","Khelfaoui","Lowell","01600000","Public School District","155 Merrimack Street",null,"Lowell","MA","01852","978-674-4320","978-937-7609",null,"PK,K,01,02,03,04,05,06,07,08,09,10,11,12",4124894]
[196,"Charter School Leader","Nicholas","Leonardos","Lowell Community Charter Public (District)","04560000","Charter District","206 Jackson Street",null,"Lowell","MA","01852","978-323-0800","978-323-4600",null,"PK,K,01,02,03,04,05,06,07,08",214583]
[197,"Charter School Leader","Margaret","McDevitt","Lowell Middlesex Academy Charter (District)","04580000","Charter District","67 Middle St",null,"Lowell","MA","01852","978-656-3165","978-459-0456",null,"09,10,11,12",21431]
[198,"Superintendent","Todd","Gazda","Ludlow","01610000","Public School District","63 Chestnut Street",null,"Ludlow","MA","01056","413-583-8372","413-583-5666",null,"PK,K,01,02,03,04,05,06,07,08,09,10,11,12",779210]
[199,"Superintendent","Kathleen","Burnham","Lunenburg","01620000","Public School District","1025 Mass Avenue",null,"Lunenburg","MA","01462","978-582-4100","978-582-4103",null,"PK,K,01,02,03,04,05,06,07,08,09,10,11,12",359908]
[200,"Superintendent","Catherine","Latham","Lynn","01630000","Public School District","100 Bennett St",null,"Lynn","MA","01905","781-593-1680","781-477-7487",null,"PK,K,01,02,03,04,05,06,07,08,09,10,11,12",4301029]
[201,"Superintendent","Jane","Tremblay","Lynnfield","01640000","Public School District","525 Salem Street",null,"Lynnfield","MA","01940","781-334-9200","781-581-5231",null,"PK,K,01,02,03,04,05,06,07,08,09,10,11,12",445248]
[202,"Superintendent","Michael","Barney","Ma Academy for Math and Science","04680000","Public School District","85 Prescott Street",null,"Worcester","MA","01605","508-831-5859","508-831-5880",null,"11,12",0]
[203,"Superintendent","John","Oteri","Malden","01650000","Public School District","77 Salem Street",null,"Malden","MA","02148","781-397-6100","781-397-7276",null,"PK,K,01,02,03,04,05,06,07,08,09,10,11,12",1856198]
[204,"Superintendent","Pamela","Beaudoin","Manchester Essex Regional","06980000","Public School District","PO BOX 1407",null,"Manchester","MA","01944","978-526-4919","978-526-7585",null,"PK,K,01,02,03,04,05,06,07,08,09,10,11,12",370914]
[205,"Superintendent","Teresa","Murphy","Mansfield","01670000","Public School District","2 Park Row",null,"Mansfield","MA","02048","508-261-7500","508-261-7509",null,"PK,K,01,02,03,04,05,06,07,08,09,10,11,12",952982]
[206,"Superintendent","Maryann","Perry","Marblehead","01680000","Public School District","9 Widger Road",null,"Marblehead","MA","01945","781-639-3141","781-639-3149",null,"PK,K,01,02,03,04,05,06,07,08,09,10,11,12",726716]
[207,"Charter School Leader","Helena","Cullen-Hamzeh","Marblehead Community Charter Public (District)","04640000","Charter District","17 Lime Street",null,"Marblehead","MA","01945","781-631-0777","781-631-0500",null,"04,05,06,07,08",55248]
[208,"Superintendent","Douglas","White","Marion","01690000","Public School District","135 Marion Rd",null,"Mattapoisett","MA","02739","508-758-2772","508-758-2802",null,"PK,K,01,02,03,04,05,06",106307]
[209,"Superintendent","Michael","Bergeron","Marlborough","01700000","Public School District","17 Washington Street",null,"Marlborough","MA","01752","508-460-3509","508-485-1142",null,"PK,K,01,02,03,04,05,06,07,08,09,10,11,12",1341858]
[210,"Superintendent","Jeffrey","Granatino","Marshfield","01710000","Public School District","76 South River Street",null,"Marshfield","MA","02050","781-834-5000","781-834-5070",null,"PK,K,01,02,03,04,05,06,07,08,09,10,11,12",962958]
[211,"Superintendent","Matthew","D'Andrea","Martha's Vineyard","07000000","Public School District","4 Pine Street",null,"Vineyard Haven","MA","02568","508-693-2007","508-693-3190",null,"09,10,11,12",194060]
[212,"Charter School Leader","Robert","Moore","Martha's Vineyard Charter (District)","04660000","Charter District","PO Box 1150",null,"West Tisbury","MA","02575","508-693-9900","508-696-9008",null,"K,01,02,03,04,05,06,07,08,09,10,11,12",36758]
[213,"Charter School Leader","Calvin","McFadden","Martin Luther King Jr. Charter School of Excellence (District)","04920000","Charter District","285 Dorset Street",null,"Springfield","MA","01108","413-214-7806","413-214-7838",null,"K,01,02,03,04,05",89937]
[214,"Superintendent","Kevin","Lyons","Masconomet","07050000","Public School District","20 Endicott Rd",null,"Boxford","MA","01921","978-887-2323","978-887-3573",null,"07,08,09,10,11,12",421626]
[215,"Superintendent","Patricia","DeBoer","Mashpee","01720000","Public School District","150-A Old Barnstable Road",null,"Mashpee","MA","02649","508-539-1500","508-477-5805",null,"PK,K,01,02,03,04,05,06,07,08,09,10,11,12",417368]
[216,"Charter School Leader","Nnenna","Ude","MATCH Charter Public School (District)","04690000","Charter District","1001 Commonwealth Avenue",null,"Boston","MA","02215","617-232-0300","617-232-2838",null,"PK,K,01,02,03,04,05,06,07,08,09,10,11,12",346757]
[217,"Superintendent","Douglas","White","Mattapoisett","01730000","Public School District","135 Marion Rd",null,"Mattapoisett","MA","02739","508-758-2772","508-758-2802",null,"PK,K,01,02,03,04,05,06",109769]
[218,"Superintendent","Robert","Gerardi","Maynard","01740000","Public School District","3-R Tiger Drive",null,"Maynard","MA","01754","978-897-2222","978-897-4610",null,"PK,K,01,02,03,04,05,06,07,08,09,10,11,12",348579]
[219,"Superintendent","Jeffrey","Marsden","Medfield","01750000","Public School District","459 Main St","3rd Fl","Medfield","MA","02052","508-359-2302","508-359-9829",null,"PK,K,01,02,03,04,05,06,07,08,09,10,11,12",570344]
[220,"Superintendent","Roy","Belson","Medford","01760000","Public School District","489 Winthrop Street",null,"Medford","MA","02155","781-393-2442","781-393-2322",null,"PK,K,01,02,03,04,05,06,07,08,09,10,11,12",1252818]
[221,"Superintendent","Armand","Pires","Medway","01770000","Public School District","45 Holliston Street",null,"Medway","MA","02053","508-533-3222","508-533-3226",null,"PK,K,01,02,03,04,05,06,07,08,09,10,11,12",564946]
[222,"Superintendent","Cyndy","Taymore","Melrose","01780000","Public School District","360 Lynn Fells Pkwy",null,"Melrose","MA","02176","781-662-2000","781-979-2285",null,"PK,K,01,02,03,04,05,06,07,08,09,10,11,12",941419]
[223,"Superintendent","Joseph","Maruszczak","Mendon-Upton","07100000","Public School District","150 North Ave",null,"Mendon","MA","01756","508-634-1585","508-634-1582",null,"PK,K,01,02,03,04,05,06,07,08,09,10,11,12",505137]
[224,"Superintendent","Judith","Scannell","Methuen","01810000","Public School District","10 Ditson Place",null,"Methuen","MA","01844","978-722-6001","978-722-6002",null,"PK,K,01,02,03,04,05,06,07,08,09,10,11,12",1806434]
[225,"Superintendent","Brian","Lynch","Middleborough","01820000","Public School District","30 Forest Street",null,"Middleborough","MA","02346","508-946-2000","508-946-2004",null,"PK,K,01,02,03,04,05,06,07,08,09,10,11,12",799861]
[226,"Superintendent","Scott","Morrison","Middleton","01840000","Public School District","28 Middleton Road",null,"Boxford","MA","01921","978-887-0771","978-887-8042",null,"PK,K,01,02,03,04,05,06",170893]
[227,"Superintendent","Kevin","Mcintyre","Milford","01850000","Public School District","31 West Fountain Street",null,"Milford","MA","01757","508-478-1101","508-478-1459",null,"PK,K,01,02,03,04,05,06,07,08,09,10,11,12",1105796]
[228,"Superintendent","Gregory","Myers","Millbury","01860000","Public School District","12 Martin Street",null,"Millbury","MA","01527","508-865-9501","508-865-0888",null,"PK,K,01,02,03,04,05,06,07,08,09,10,11,12",443114]
[229,"Superintendent","Nancy","Gustafson","Millis","01870000","Public School District","245 Plain Street","Central Office","Millis","MA","02054","508-376-7000","508-376-7020",null,"PK,K,01,02,03,04,05,06,07,08,09,10,11,12",315788]
[230,"Superintendent","Mary","Gormley","Milton","01890000","Public School District","25 Gile Road",null,"Milton","MA","02186","617-696-4808","617-696-5099",null,"PK,K,01,02,03,04,05,06,07,08,09,10,11,12",1329022]
[231,"Superintendent","Edward","Bouquillon","Minuteman Regional Vocational Technical","08300000","Public School District","758 Marrett Rd",null,"Lexington","MA","02421","781-861-6500","781-863-1747",null,"09,10,11,12",229145]
[232,"Superintendent","Michael","Buoniconti","Mohawk Trail","07170000","Public School District","24 Ashfield Rd",null,"Shelburne Falls","MA","01370","413-625-0192","413-625-0196",null,"PK,K,01,02,03,04,05,06,07,08,09,10,11,12",342292]
[233,"Superintendent","Scott","Carpenter","Monomoy Regional School District","07120000","Public School District","425 Crowell Rd",null,"Chatham","MA","02633","508-945-5130","508-945-5133",null,"PK,K,01,02,03,04,05,06,07,08,09,10,11,12",495730]
[234,"Superintendent","Cheryl","Clarke","Monson","01910000","Public School District","P O Box 159",null,"Monson","MA","01057","413-267-4150","413-267-4163",null,"PK,K,01,02,03,04,05,06,07,08,09,10,11,12",302631]
[235,"Superintendent","Sheila","Harrity","Montachusett Regional Vocational Technical","08320000","Public School District","1050 Westminster Street",null,"Fitchburg","MA","01420","978-345-9200","978-345-9165",null,"09,10,11,12",355631]
[236,"Superintendent","Kimberley","Grady","Mount Greylock","07150000","Public School District","1781 Cold Spring Rd",null,"Williamstown","MA","01267","413-458-9582","413-458-2856",null,"07,08,09,10,11,12",148444]
[237,"Charter School Leader","Alex","Dan","Mystic Valley Regional Charter (District)","04700000","Charter District","4 Laurel Street",null,"Malden","MA","02148","781-388-0222","781-321-5688",null,"K,01,02,03,04,05,06,07,08,09,10,11,12",281397]
[238,"Superintendent","Anthony","Pierantozzi","Nahant","01960000","Public School District","290 Castle Road",null,"Nahant","MA","01908","781-581-1600","781-581-0440",null,"PK,K,01,02,03,04,05,06",70031]
[239,"Superintendent","William","Cozort","Nantucket","01970000","Public School District","10 Surfside Road",null,"Nantucket","MA","02554","508-228-7285","508-325-5318",null,"PK,K,01,02,03,04,05,06,07,08,09,10,11,12",383126]
[240,"Superintendent","Christopher","Casavant","Narragansett","07200000","Public School District","462 Baldwinville Rd",null,"Baldwinville","MA","01436","978-939-5661","978-939-5661",null,"PK,K,01,02,03,04,05,06,07,08,09,10,11,12",371546]
[241,"Superintendent","Brooke","Clenchy","Nashoba","07250000","Public School District","50 Mechanic Street",null,"Bolton","MA","01740","978-779-0539","978-779-5537",null,"PK,K,01,02,03,04,05,06,07,08,09,10,11,12",839646]
[242,"Superintendent","Denise","Pigeon","Nashoba Valley Regional Vocational Technical","08520000","Public School District","100 Littleton Road",null,"Westford","MA","01886","978-692-4711","978-392-0570",null,"09,10,11,12",212718]
[243,"Superintendent","Anna","Nolin","Natick","01980000","Public School District","13 East Central Street",null,"Natick","MA","01760","508-647-6500","508-647-6506",null,"PK,K,01,02,03,04,05,06,07,08,09,10,11,12",1262071]
[244,"Superintendent","Thomas","Conrad","Nauset","06600000","Public School District","78 Eldredge Pkwy",null,"Orleans","MA","02653","508-255-8800","508-240-2351",null,"06,07,08,09,10,11,12",347692]
[245,"Superintendent","Daniel","Gutekanst","Needham","01990000","Public School District","1330 Highland Avenue",null,"Needham","MA","02492","781-455-0400","781-455-0417",null,"PK,K,01,02,03,04,05,06,07,08,09,10,11,12",1295960]
[246,"Charter School Leader","Kate","Scott","Neighborhood House Charter (District)","04440000","Charter District","21 Queen Street",null,"Dorchester","MA","02122","617-825-0703","617-825-1829",null,"PK,K,01,02,03,04,05,06,07,08,09",138834]
[247,"Superintendent","Thomas","Anderson","New Bedford","02010000","Public School District","455 County Street","C/O Paul Rodrigues Administration Bldg.","New Bedford","MA","02740","508-997-4511","508-997-0298",null,"PK,K,01,02,03,04,05,06,07,08,09,10,11,12",3768593]
[248,"Charter School Leader","Omari","Walker","New Heights Charter School of Brockton (District)","35130000","Charter District","1690 Main Street",null,"Brockton","MA","02301","508-857-4633","508-857-5721",null,"06,07,08,09",97440]
[249,"Superintendent","Jennifer","Haggerty","New Salem-Wendell","07280000","Public School District","18 Pleasant Street",null,"Erving","MA","01344","413-423-3337","413-423-3236",null,"PK,K,01,02,03,04,05,06",50493]
[250,"Superintendent","Susan","Viccaro","Newburyport","02040000","Public School District","70 Low Street",null,"Newburyport","MA","01950","978-465-4457","978-462-3495",null,"PK,K,01,02,03,04,05,06,07,08,09,10,11,12",504340]
[251,"Superintendent","David","Fleishman","Newton","02070000","Public School District","100 Walnut Street",null,"Newtonville","MA","02460","617-559-6100","617-559-6101",null,"PK,K,01,02,03,04,05,06,07,08,09,10,11,12",3344222]
[252,"Superintendent","Ingrid","Allardi","Norfolk","02080000","Public School District","70 Boardman Street",null,"Norfolk","MA","02056","508-528-1225","508-528-3739",null,"PK,K,01,02,03,04,05,06",229514]
[253,"Superintendent","Tammy","Quinn","Norfolk County Agricultural","09150000","Public School District","400 Main Street",null,"Walpole","MA","02081","508-668-0268","508-668-0612",null,"09,10,11,12",120336]
[254,"Superintendent","Barbara","Malkas","North Adams","02090000","Public School District","37 Main Street","Suite 200","North Adams","MA","01247","413-776-1458","413-776-1685",null,"PK,K,01,02,03,04,05,06,07,08,09,10,11,12",494673]
[255,"Superintendent","Gregg","Gilligan","North Andover","02110000","Public School District","566 Main Street",null,"North Andover","MA","01845","978-794-1503","978-794-0231",null,"PK,K,01,02,03,04,05,06,07,08,09,10,11,12",1146558]
[256,"Superintendent","Scott","Holcomb","North Attleborough","02120000","Public School District","6 Morse Street",null,"No. Attleborough","MA","02760","508-643-2100","508-643-2110",null,"PK,K,01,02,03,04,05,06,07,08,09,10,11,12",1057138]
[257,"Superintendent","Richard","Lind","North Brookfield","02150000","Public School District","10 New School Drive",null,"North Brookfield","MA","01535","508-867-9821","508-867-8148",null,"PK,K,01,02,03,04,05,06,07,08,09,10,11,12",142432]
[258,"Superintendent","Joan","Landers","North Middlesex","07350000","Public School District","45 Main Street",null,"Pepperell","MA","01463","978-597-8713","978-597-6534",null,"PK,K,01,02,03,04,05,06,07,08,09,10,11,12",828977]
[259,"Superintendent","Jon","Bernard","North Reading","02170000","Public School District","189 Park Street",null,"North Reading","MA","01864","978-664-7810","978-664-0252",null,"PK,K,01,02,03,04,05,06,07,08,09,10,11,12",532492]
[260,"Superintendent","John","Provost","Northampton","02100000","Public School District","212 Main Street",null,"Northampton","MA","01060","413-587-1315","413-587-1318",null,"PK,K,01,02,03,04,05,06,07,08,09,10,11,12",788804]
[261,"Superintendent","Andrew","Linkenhoker","Northampton-Smith Vocational Agricultural","04060000","Public School District","80 Locust Street",null,"Northampton","MA","01060","413-587-1414","413-587-1405",null,"09,10,11,12",182637]
[262,"Superintendent","Christine","Johnson","Northboro-Southboro","07300000","Public School District","53 Parkerville Road",null,"Southborough","MA","01772","508-486-5115","508-486-5123",null,"09,10,11,12",370200]
[263,"Superintendent","Christine","Johnson","Northborough","02130000","Public School District","53 Parkerville Road",null,"Southborough","MA","01772","508-486-5115","508-486-5123",null,"K,01,02,03,04,05,06,07,08",474609]
[264,"Superintendent","Catherine","Stickney","Northbridge","02140000","Public School District","87 Linwood Avenue",null,"Whitinsville","MA","01588","508-234-8156","508-234-8469",null,"PK,K,01,02,03,04,05,06,07,08,09,10,11,12",651130]
[265,"Superintendent","David","DiBarri","Northeast Metropolitan Regional Vocational Technical","08530000","Public School District","100 Hemlock Rd",null,"Wakefield","MA","01880","781-246-0810","781-246-4919",null,"09,10,11,12",345229]
[266,"Superintendent","James","Brosnan","Northern Berkshire Regional Vocational Technical","08510000","Public School District","70 Hodges Cross Rd",null,"North Adams","MA","01247","413-663-5383","413-664-9424",null,"09,10,11,12",121201]
[267,"Superintendent","Joseph","Baeta","Norton","02180000","Public School District","64 West Main Street",null,"Norton","MA","02766","508-285-0100","508-285-0199",null,"PK,K,01,02,03,04,05,06,07,08,09,10,11,12",650032]
[268,"Superintendent","Matthew","Keegan","Norwell","02190000","Public School District","322 Main Street",null,"Norwell","MA","02061","781-659-8800","781-659-8805",null,"PK,K,01,02,03,04,05,06,07,08,09,10,11,12",442960]
[269,"Superintendent","David","Thomson","Norwood","02200000","Public School District","275 Prospect Street","PO BOX 67","Norwood","MA","02062","781-762-6804","781-762-0229",null,"PK,K,01,02,03,04,05,06,07,08,09,10,11,12",940073]
[270,"Superintendent","Matthew","D'Andrea","Oak Bluffs","02210000","Public School District","4 Pine Street",null,"Vineyard Haven","MA","02568","508-693-2007","508-693-3190",null,"PK,K,01,02,03,04,05,06,07,08",113233]
[271,"Superintendent","Aaron","Polansky","Old Colony Regional Vocational Technical","08550000","Public School District","476 North Avenue",null,"Rochester","MA","02770","508-763-8011","508-763-9821",null,"09,10,11,12",137684]
[272,"Superintendent","Douglas","White","Old Rochester","07400000","Public School District","135 Marion Rd",null,"Mattapoisett","MA","02739","508-758-2772","508-758-2802",null,"07,08,09,10,11,12",327112]
[273,"Charter School Leader","Lisa","DeTora","Old Sturbridge Academy Charter Public School (District)","35150000","Charter District","2 Old Sturbridge Village Road",null,"Sturbridge","MA","01566","774-922-1840","--",null,"K,01,02,03",37024]
[274,"Superintendent","Tari","Thomas","Orange","02230000","Public School District","507 S. Main Street","P.O. Box 680","Orange","MA","01364","978-544-2920","978-544-8383",null,"PK,K,01,02,03,04,05,06",237405]
[275,"Superintendent","Thomas","Conrad","Orleans","02240000","Public School District","78 Eldredge Pkwy",null,"Orleans","MA","02653","508-255-8800","508-240-2351",null,"K,01,02,03,04,05",69806]
[276,"Superintendent","Elizabeth","Zielinski","Oxford","02260000","Public School District","4 Maple Road",null,"Oxford","MA","01540","508-987-6050","508-987-6054",null,"PK,K,01,02,03,04,05,06,07,08,09,10,11,12",483778]
[277,"Superintendent","Patricia","Gardner","Palmer","02270000","Public School District","24 Converse Street","c/o Suite 1","Palmer","MA","01069","413-283-2650","413-283-2655",null,"PK,K,01,02,03,04,05,06,07,08,09,10,11,12",447503]
[278,"Superintendent","Gerald","Paist","Pathfinder Regional Vocational Technical","08600000","Public School District","240 Sykes Street",null,"Palmer","MA","01069","413-283-9701","413-284-0032",null,"09,10,11,12",231446]
[279,"Charter School Leader","Isabelina","Rodriguez","Paulo Freire Social Justice Charter School (District)","35010000","Charter District","161 Lower Westfield ROad",null,"Holyoke","MA","01040","413-536-3201","413-536-3206",null,"09,10,11,12",82456]
[280,"Superintendent","Cara","Murtagh","Peabody","02290000","Public School District","27 Lowell Street",null,"Peabody","MA","01960","978-536-6500","978-536-6590",null,"PK,K,01,02,03,04,05,06,07,08,09,10,11,12",1802467]
[281,"Superintendent","Michael","Morris","Pelham","02300000","Public School District","170 Chestnut Street","Business Office","Amherst","MA","01002","413-362-1810","413-549-6108",null,"K,01,02,03,04,05,06",37092]
[282,"Superintendent","Erin","Obey","Pembroke","02310000","Public School District","72 Pilgrim Road","Office of the Superintendent","Pembroke","MA","02359","781-829-0832","781-829-6957",null,"PK,K,01,02,03,04,05,06,07,08,09,10,11,12",578321]
[283,"Superintendent","John","Seymour","Pentucket","07450000","Public School District","22 Main Street",null,"West Newbury","MA","01985","978-363-2280","978-363-1165",null,"PK,K,01,02,03,04,05,06,07,08,09,10,11,12",574539]
[284,"Superintendent","Tari","Thomas","Petersham","02340000","Public School District","P O Box 148",null,"Petersham","MA","01366","978-724-3363","978-724-6687",null,"K,01,02,03,04,05,06",30665]
[285,"Charter School Leader","Beth","Anderson","Phoenix Academy Public Charter High School Springfield (District)","35080000","Charter District","65 Lincoln Street",null,"Springfield","MA","01105","413-273-1236","413-294-2500",null,"09,10,11,12",68750]
[286,"Charter School Leader","Beth","Anderson","Phoenix Charter Academy (District)","04930000","Charter District","175 Hawthorne Street",null,"Chelsea","MA","02150","617-889-3100","617-889-3144",null,"09,10,11,12",45219]
[287,"Charter School Leader","Barish","Icin","Pioneer Charter School of Science (District)","04940000","Charter District","51-59 Summer Street",null,"Everett","MA","02149","617-389-7277","617-389-7278",null,"K,01,02,03,04,07,08,09,10,11,12",144927]
[288,"Charter School Leader","Barish","Icin","Pioneer Charter School of Science II (PCSS-II) (District)","35060000","Charter District","97 Main Street",null,"Saugus","MA","01906","781-666-3945","781-666-3910",null,"07,08,09,10,11,12",82029]
[289,"Superintendent","Ruth","Miller","Pioneer Valley","07500000","Public School District","97 F Sumner Turner Road",null,"Northfield","MA","01360","413-512-5608","413-512-5608",null,"PK,K,01,02,03,04,05,06,07,08,09,10,11,12",370567]
[290,"Charter School Leader","Kathleen","Wang","Pioneer Valley Chinese Immersion Charter (District)","04970000","Charter District","317 Russell Street",null,"Hadley","MA","01035","413-582-7040","413-582-7068",null,"K,01,02,03,04,05,06,07,08,09,10,11,12",95589]
[291,"Charter School Leader","Marc","Kenen","Pioneer Valley Performing Arts Charter Public (District)","04790000","Charter District","15 Mulligan Drive",null,"South Hadley","MA","01075","413-552-1580","413-552-1594",null,"07,08,09,10,11,12",75097]
[292,"Superintendent","Jason","Mccandless","Pittsfield","02360000","Public School District","269 First Street",null,"Pittsfield","MA","01201","413-499-9512","413-448-2643",null,"PK,K,01,02,03,04,05,06,07,08,09,10,11,12",1797379]
[293,"Superintendent","David","Raiche","Plainville","02380000","Public School District","68 Messenger Street",null,"Plainville","MA","02762","508-699-1300","508-699-1302",null,"PK,K,01,02,03,04,05,06",184497]
[294,"Superintendent","Gary","Maestas","Plymouth","02390000","Public School District","253 South Meadow Rd",null,"Plymouth","MA","02360","508-830-4300","508-746-1873",null,"PK,K,01,02,03,04,05,06,07,08,09,10,11,12",1925407]
[295,"Superintendent","Joy","Blackwood","Plympton","02400000","Public School District","250 Pembroke Street",null,"Kingston","MA","02364","781-585-4313","781-585-2994",null,"K,01,02,03,04,05,06",52404]
[296,"Charter School Leader","Angela","Allen","Prospect Hill Academy Charter (District)","04870000","Charter District","50 Essex Street",null,"Cambridge","MA","02139","617-284-7800","617-284-7980",null,"K,01,02,03,04,05,06,07,08,09,10,11,12",266374]
[297,"Superintendent","Beth","Singer","Provincetown","02420000","Public School District","12 Winslow Street",null,"Provincetown","MA","02657","508-487-5000","508-487-5098",null,"PK,K,01,02,03,04,05,06,07,08",62517]
[298,"Superintendent","Maureen","Marshall","Quabbin","07530000","Public School District","872 South Street",null,"Barre","MA","01005","978-355-4668","978-355-6756",null,"PK,K,01,02,03,04,05,06,07,08,09,10,11,12",641464]
[299,"Superintendent","Brett","Kustigian","Quaboag Regional","07780000","Public School District","284 Old West Brookfield Road","PO Box 1538","Warren","MA","01083","413-436-9256","413-436-9738",null,"PK,K,01,02,03,04,05,06,07,08,09,10,11,12",417723]
[300,"Superintendent","Richard","Decristofaro","Quincy","02430000","Public School District","34 Coddington Street",null,"Quincy","MA","02169","617-984-8700","617-984-8965",null,"PK,K,01,02,03,04,05,06,07,08,09,10,11,12",2377386]
[301,"Superintendent","Tari","Thomas","Ralph C Mahar","07550000","Public School District","507 South Main Street",null,"Orange","MA","01364","978-544-2920","978-544-8383",null,"07,08,09,10,11,12",215285]
[302,"Superintendent","Thomas","Anderson","Randolph","02440000","Public School District","40 Highland Avenue",null,"Randolph","MA","02368","781-961-6205","781-961-6295",null,"PK,K,01,02,03,04,05,06,07,08,09,10,11,12",876606]
[303,"Superintendent","John","Doherty","Reading","02460000","Public School District","82 Oakland Road",null,"Reading","MA","01867","781-944-5800","781-942-9149",null,"PK,K,01,02,03,04,05,06,07,08,09,10,11,12",1022340]
[304,"Superintendent","Dianne","Kelly","Revere","02480000","Public School District","101 School Street",null,"Revere","MA","02151","781-286-8226","781-286-8221",null,"PK,K,01,02,03,04,05,06,07,08,09,10,11,12",1790704]
[305,"Superintendent","Peter","Dillon","Richmond","02490000","Public School District","1831 State Road",null,"Richmond","MA","01254","413-698-2207","413-698-4003",null,"PK,K,01,02,03,04,05,06,07,08",65535]
[306,"Charter School Leader","Jill","Crafts","Rising Tide Charter Public (District)","04830000","Charter District","59 Armstrong Road",null,"Plymouth","MA","02360","508-747-2620","508-747-1826",null,"05,06,07,08,09,10,11,12",132575]
[307,"Charter School Leader","Andrew","Willemsen","River Valley Charter (District)","04820000","Charter District","2 Perry Way",null,"Newburyport","MA","01950","978-465-0065","978-465-0119",null,"K,01,02,03,04,05,06,07,08",54414]
[308,"Superintendent","Douglas","White","Rochester","02500000","Public School District","135 Marion Rd",null,"Mattapoisett","MA","02739","508-758-2772","508-758-2802",null,"PK,K,01,02,03,04,05,06",110844]
[309,"Superintendent","Alan","Cron","Rockland","02510000","Public School District","34 MacKinlay Way",null,"Rockland","MA","02370","781-878-3893","781-982-1483",null,"PK,K,01,02,03,04,05,06,07,08,09,10,11,12",595345]
[310,"Superintendent","Robert","Liebow","Rockport","02520000","Public School District","24 Jerdens Lane",null,"Rockport","MA","01966","978-546-1200","978-546-1205",null,"PK,K,01,02,03,04,05,06,07,08,09,10,11,12",279055]
[311,"Superintendent","John","Franzoni","Rowe","02530000","Public School District","86 Pond Road",null,"Rowe","MA","01367","413-664-9292","413-664-9942",null,"PK,K,01,02,03,04,05,06",15833]
[312,"Charter School Leader","Anna","Hall","Roxbury Preparatory Charter (District)","04840000","Charter District","120 Fisher Avenue",null,"Roxbury","MA","02120","617-566-2361","617-566-2373",null,"05,06,07,08,09,10,11",393205]
[313,"Charter School Leader","Karen","Reuter","Sabis International Charter (District)","04410000","Charter District","160 Joan Street",null,"Springfield","MA","01129","413-783-2600","413-783-2555",null,"K,01,02,03,04,05,06,07,08,09,10,11,12",338222]
[314,"Superintendent","Margarita","Ruiz","Salem","02580000","Public School District","29 Highland Avenue",null,"Salem","MA","01970","978-740-1212","978-740-3083",null,"PK,K,01,02,03,04,05,06,07,08,09,10,11,12",1149059]
[315,"Charter School Leader","Kathy","Egmont","Salem Academy Charter (District)","04850000","Charter District","45 Congress Street","c/o Shetland Pk","Salem","MA","01970","978-744-2105","978-744-7246",null,"06,07,08,09,10,11,12",119837]
[316,"Superintendent","Pamela","Gould","Sandwich","02610000","Public School District","33 Water Street",null,"Sandwich","MA","02563","508-888-1054","508-888-9505",null,"PK,K,01,02,03,04,05,06,07,08,09,10,11,12",672786]
[317,"Superintendent","David","DeRuosi","Saugus","02620000","Public School District","23 Main Street",null,"Saugus","MA","01906","781-231-5000","781-233-9424",null,"PK,K,01,02,03,04,05,06,07,08,09,10,11,12",634898]
[318,"Superintendent","John","Franzoni","Savoy","02630000","Public School District","26 Chapel Road",null,"Savoy","MA","01256","413-743-1992","413-743-1114",null,"PK,K,01,02,03,04,05",24979]
[319,"Superintendent","Ronald","Griffin","Scituate","02640000","Public School District","606 C J Cushing Hwy",null,"Scituate","MA","02066","781-545-8759","781-545-6291",null,"PK,K,01,02,03,04,05,06,07,08,09,10,11,12",699977]
[320,"Superintendent","Arlene","Bosco","Seekonk","02650000","Public School District","25 Water Lane",null,"Seekonk","MA","02771","508-399-5106","508-399-5128",null,"PK,K,01,02,03,04,05,06,07,08,09,10,11,12",457808]
[321,"Charter School Leader","Leo","Flanagan","Seven Hills Charter Public (District)","04860000","Charter District","51 Gage Street",null,"Worcester","MA","01605","774-420-7650","774-420-7295",null,"K,01,02,03,04,05,06,07,08",180471]
[322,"Superintendent","Victoria","Greer","Sharon","02660000","Public School District","75 Mountain Street",null,"Sharon","MA","02067","781-784-1570","781-784-1573",null,"PK,K,01,02,03,04,05,06,07,08,09,10,11,12",799558]
[323,"Superintendent","Timothy","Broadrick","Shawsheen Valley Regional Vocational Technical","08710000","Public School District","100 Cook Street",null,"Billerica","MA","01821","978-667-2111","978-663-6272",null,"09,10,11,12",384530]
[324,"Superintendent","Andrew","Keough","Sherborn","02690000","Public School District","157 Farm Street",null,"Dover","MA","02030","508-785-0036","508-785-2239",null,"PK,K,01,02,03,04,05",82974]
[325,"Superintendent","Joseph","Sawyer","Shrewsbury","02710000","Public School District","100 Maple Avenue",null,"Shrewsbury","MA","01545","508-841-8400","508-841-8490",null,"PK,K,01,02,03,04,05,06,07,08,09,10,11,12",1460644]
[326,"Superintendent","Jennifer","Haggerty","Shutesbury","02720000","Public School District","18 Pleasant Street",null,"Erving","MA","01344","413-423-3337","413-423-3236",null,"PK,K,01,02,03,04,05,06",41326]
[327,"Charter School Leader","Margaret","Shepherd","Silver Hill Horace Mann Charter (District)","04770000","Charter District","675 Washington Street",null,"Haverhill","MA","01832","978-374-3448","978-374-3461",null,"K,01,02,03,04,05",127895]
[328,"Superintendent","Joy","Blackwood","Silver Lake","07600000","Public School District","250 Pembroke Street",null,"Kingston","MA","02364","781-585-4313","781-585-2994",null,"PK,07,08,09,10,11,12",508839]
[329,"Charter School Leader","Courtney","Harter","Sizer School: A North Central Charter Essential (District)","04740000","Charter District","500 Rindge Road",null,"Fitchburg","MA","01420","978-345-2701","978-345-9127",null,"07,08,09,10,11,12",84806]
[330,"Superintendent","Jeffrey","Schoonover","Somerset","02730000","Public School District","580 Whetstone Hill Road",null,"Somerset","MA","02726","508-324-3100","508-324-3104",null,"PK,K,01,02,03,04,05,06,07,08",445106]
[331,"Superintendent","Jeffrey","Schoonover","Somerset Berkley Regional School District","07630000","Public School District","580 Whetstone Hill",null,"Somerset","MA","02726","508-324-3100","508-324-3104",null,"09,10,11,12",206373]
[332,"Superintendent","Mary","Skipper","Somerville","02740000","Public School District","8 Bonair Street",null,"Somerville","MA","02145","617-625-6600","617-629-5661",null,"PK,K,01,02,03,04,05,06,07,08,09,10,11,12",1559394]
[333,"Superintendent","Nicholas","Young","South Hadley","02780000","Public School District","116 Main Street",null,"South Hadley","MA","01075","413-538-5060","413-532-6284",null,"PK,K,01,02,03,04,05,06,07,08,09,10,11,12",578807]
[334,"Superintendent","Jonathan","Evans","South Middlesex Regional Vocational Technical","08290000","Public School District","750 Winter Street",null,"Framingham","MA","01702","508-416-2250","508-416-2342",null,"09,10,11,12",285404]
[335,"Charter School Leader","Alicia","Savage","South Shore Charter Public (District)","04880000","Charter District","100 Longwater Circle",null,"Norwell","MA","02061","781-982-4202","781-982-4201",null,"K,01,02,03,04,05,06,07,08,09,10,11,12",227152]
[336,"Superintendent","Thomas","Hickey","South Shore Regional Vocational Technical","08730000","Public School District","476 Webster Street",null,"Hanover","MA","02339","781-878-8822","781-982-0281",null,"09,10,11,12",199723]
[337,"Superintendent","Aaron","Osborne","Southampton","02750000","Public School District","19 Stage Rd",null,"Westhampton","MA","01027","413-527-7200","413-529-9497",null,"PK,K,01,02,03,04,05,06",115721]
[338,"Superintendent","Christine","Johnson","Southborough","02760000","Public School District","53 Parkerville Road",null,"Southborough","MA","01772","508-486-5115","508-486-5123",null,"PK,K,01,02,03,04,05,06,07,08",367265]
[339,"Superintendent","Jeffrey","Villar","Southbridge","02770000","Public School District","25 Cole Avenue",null,"Southbridge","MA","01550","508-764-5414","508-764-8325",null,"PK,K,01,02,03,04,05,06,07,08,09,10,11,12",732196]
[340,"Superintendent","Luis","Lopes","Southeastern Regional Vocational Technical","08720000","Public School District","250 Foundry Street",null,"South Easton","MA","02375","508-230-1200","508-230-1215",null,"09,10,11,12",394306]
[341,"Superintendent","Beth","Regulbuto","Southern Berkshire","07650000","Public School District","PO BOX 339",null,"Sheffield","MA","01257","413-229-8778","413-229-2913",null,"PK,K,01,02,03,04,05,06,07,08,09,10,11,12",262090]
[342,"Superintendent","John","LaFleche","Southern Worcester County Regional Vocational Technical","08760000","Public School District","57 Old Muggett Hill Road",null,"Charlton","MA","01507","508-248-5971","508-248-4747",null,"09,10,11,12",298469]
[343,"Superintendent","Jennifer","Willard","Southwick-Tolland-Granville Regional School District","07660000","Public School District","86 Powder Mill Road",null,"Southwick","MA","01077","413-569-5391","413-569-1711",null,"PK,K,01,02,03,04,05,06,07,08,09,10,11,12",439669]
[344,"Superintendent","Paul","Haughey","Spencer-E Brookfield","07670000","Public School District","306 Main Street",null,"Spencer","MA","01562","508-885-8500","508-885-8504",null,"PK,K,01,02,03,04,05,06,07,08,09,10,11,12",513799]
[345,"Superintendent","Daniel","Warwick","Springfield","02810000","Public School District","1550 Main Street",null,"Springfield","MA","01103","413-787-7100","413-787-7171",null,"PK,K,01,02,03,04,05,06,07,08,09,10,11,12",7561873]
[346,"Charter School Leader","Bill","Spirer","Springfield Preparatory Charter School (District)","35100000","Charter District","370 Pine St.",null,"Springfield","MA","01105","413-231-2722","--",null,"K,01,02,03",53537]
[347,"Superintendent","John","Macero","Stoneham","02840000","Public School District","149 Franklin Street",null,"Stoneham","MA","02180","781-279-3802","781-279-3818",null,"PK,K,01,02,03,04,05,06,07,08,09,10,11,12",637205]
[348,"Superintendent","Marguerite","Rizzi","Stoughton","02850000","Public School District","232 Pearl Street",null,"Stoughton","MA","02072","781-344-4000","781-344-6417",null,"PK,K,01,02,03,04,05,06,07,08,09,10,11,12",973028]
[349,"Superintendent","Erin","Nosek","Sturbridge","02870000","Public School District","320 Brookfield Rd",null,"Fiskdale","MA","01518","508-347-3077","508-347-2697",null,"PK,K,01,02,03,04,05,06",192735]
[350,"Charter School Leader","Paul","Marble","Sturgis Charter Public (District)","04890000","Charter District","427 Main Street",null,"Hyannis","MA","02601","508-778-1782","508-771-6785",null,"09,10,11,12",167361]
[351,"Superintendent","Anne","Wilson","Sudbury","02880000","Public School District","40 Fairbank Road",null,"Sudbury","MA","01776","978-639-3211","978-443-9001",null,"PK,K,01,02,03,04,05,06,07,08",579065]
[352,"Superintendent","Darius","Modestow","Sunderland","02890000","Public School District","113 North Main Street, Office C101",null,"South Deerfield","MA","01373","413-665-1155","413-665-8506",null,"PK,K,01,02,03,04,05,06",54481]
[353,"Superintendent","Theodore","Friend","Sutton","02900000","Public School District","383 Boston Rd",null,"Sutton","MA","01590","508-581-1600","508-865-6463",null,"PK,K,01,02,03,04,05,06,07,08,09,10,11,12",336728]
[354,"Superintendent","Pamela","Angelakis","Swampscott","02910000","Public School District","207 Forest Avenue",null,"Swampscott","MA","01907","781-596-8800","781-599-2502",null,"PK,K,01,02,03,04,05,06,07,08,09,10,11,12",532695]
[355,"Superintendent","John","Robidoux","Swansea","02920000","Public School District","1 Gardners Neck Road",null,"Swansea","MA","02777","508-675-1195","508-672-1040",null,"PK,K,01,02,03,04,05,06,07,08,09,10,11,12",522667]
[356,"Superintendent","Erin","Nosek","Tantasqua","07700000","Public School District","320A Brookfield Rd",null,"Fiskdale","MA","01518","508-347-3077","508-347-2697",null,"07,08,09,10,11,12",402808]
[357,"Superintendent","Julie","Hackett","Taunton","02930000","Public School District","215 Harris Street",null,"Taunton","MA","02780","508-821-1201","508-821-1177",null,"PK,K,01,02,03,04,05,06,07,08,09,10,11,12",2398189]
[358,"Superintendent","Adam","Goldberg","TEC Connections Academy Commonwealth Virtual School District","39020000","Public School District","141 Mansion Drive",null,"East Walpole","MA","02032","774-315-5123","--",null,"K,01,02,03,04,05,06,07,08,09,10,11,12",304842]
[359,"Superintendent","Christopher","Malone","Tewksbury","02950000","Public School District","139 Pleasant Street",null,"Tewksbury","MA","01876","978-640-7800","978-640-7804",null,"PK,K,01,02,03,04,05,06,07,08,09,10,11,12",830916]
[360,"Superintendent","Matthew","D'Andrea","Tisbury","02960000","Public School District","4 Pine Street",null,"Vineyard Haven","MA","02568","508-693-2007","508-693-3190",null,"PK,K,01,02,03,04,05,06,07,08",87469]
[361,"Superintendent","Scott","Morrison","Topsfield","02980000","Public School District","28 Middleton Road",null,"Boxford","MA","01921","978-887-0771","978-887-8042",null,"PK,K,01,02,03,04,05,06",124912]
[362,"Superintendent","Stephen","Dockray","Tri-County Regional Vocational Technical","08780000","Public School District","147 Pond Street",null,"Franklin","MA","02038","508-528-5400","508-528-6074",null,"09,10,11,12",292563]
[363,"Superintendent","Brian","Forget","Triton","07730000","Public School District","112 Elm Street",null,"Byfield","MA","01922","978-465-2397","978-465-8599",null,"PK,K,01,02,03,04,05,06,07,08,09,10,11,12",710169]
[364,"Superintendent","Michael","Gradone","Truro","03000000","Public School District","P O Box 2029",null,"Truro","MA","02666","508-487-1558","508-487-4289",null,"PK,K,01,02,03,04,05,06",40484]
[365,"Superintendent","Michael","Flanagan","Tyngsborough","03010000","Public School District","50 Norris Rd",null,"Tyngsborough","MA","01879","978-649-7488","978-649-7199",null,"PK,K,01,02,03,04,05,06,07,08,09,10,11,12",475504]
[366,"Charter School Leader","Rashidah","Lawson","UP Academy Charter School of Boston (District)","04800000","Charter District","215 Dorchester Street",null,"Boston","MA","02127","617-635-8819","--",null,"06,07,08",186810]
[367,"Charter School Leader","Brittany","Morse","UP Academy Charter School of Dorchester (District)","35050000","Charter District","35 Westville Street",null,"Boston","MA","02124","617-635-8810","--",null,"PK,K,01,02,03,04,05,06,07,08",230108]
[368,"Superintendent","Matthew","D'Andrea","Up-Island Regional","07740000","Public School District","4 Pine Street",null,"Vineyard Haven","MA","02568","508-693-2007","508-693-3190",null,"PK,K,01,02,03,04,05,06,07,08",100415]
[369,"Superintendent","Robert","Dutch","Upper Cape Cod Regional Vocational Technical","08790000","Public School District","220 Sandwich Rd",null,"Bourne","MA","02532","508-759-7711","508-759-7208",null,"09,10,11,12",194110]
[370,"Superintendent","Frank","Tiano","Uxbridge","03040000","Public School District","9 North Main Street",null,"Uxbridge","MA","01569","508-278-8648","508-278-8612",null,"PK,K,01,02,03,04,05,06,07,08,09,10,11,12",491719]
[371,"Charter School Leader","Ashley","Martin","Veritas Preparatory Charter School (District)","04980000","Charter District","370 Pine Street",null,"Springfield","MA","01105","413-539-0055","413-306-5076",null,"05,06,07,08",84832]
[372,"Superintendent","Darryll","McCall","Wachusett","07750000","Public School District","1745 Main Street","c/o Jefferson School","Jefferson","MA","01522","508-829-1670","508-829-1680",null,"PK,K,01,02,03,04,05,06,07,08,09,10,11,12",1633071]
[373,"Superintendent","Kimberly","Smith","Wakefield","03050000","Public School District","60 Farm Street",null,"Wakefield","MA","01880","781-246-6400","781-245-9164",null,"PK,K,01,02,03,04,05,06,07,08,09,10,11,12",869237]
[374,"Superintendent","Erin","Nosek","Wales","03060000","Public School District","320 Brookfield Rd",null,"Fiskdale","MA","01518","508-347-3077","508-347-2697",null,"PK,K,01,02,03,04,05,06",40763]
[375,"Superintendent","Lincoln","Lynch","Walpole","03070000","Public School District","135 School Street",null,"Walpole","MA","02081","508-660-7200","508-668-1167",null,"PK,K,01,02,03,04,05,06,07,08,09,10,11,12",929309]
[376,"Superintendent","Drew","Echelson","Waltham","03080000","Public School District","617 Lexington Street",null,"Waltham","MA","02452","781-314-5400","781-314-5411",null,"PK,K,01,02,03,04,05,06,07,08,09,10,11,12",1712148]
[377,"Superintendent","Marlene","Di","Ware","03090000","Public School District","P O Box 240",null,"Ware","MA","01082","413-967-4271","413-967-9580",null,"PK,K,01,02,03,04,05,06,07,08,09,10,11,12",361979]
[378,"Superintendent","Kimberly","Shaver-Hood","Wareham","03100000","Public School District","48 Marion Road",null,"Wareham","MA","02571","508-291-3500","508-291-3578",null,"PK,K,01,02,03,04,05,06,07,08,09,10,11,12",684209]
[379,"Superintendent","Deanne","Galdston","Watertown","03140000","Public School District","30 Common Street",null,"Watertown","MA","02472","617-926-7700","617-923-1234",null,"PK,K,01,02,03,04,05,06,07,08,09,10,11,12",891952]
[380,"Superintendent","Arthur","Unobskey","Wayland","03150000","Public School District","41 Cochituate Rd",null,"Wayland","MA","01778","508-358-3774","508-358-7708",null,"K,01,02,03,04,05,06,07,08,09,10,11,12",616328]
[381,"Superintendent","Ruthann","Petruno-Goguen","Webster","03160000","Public School District","77 Poland Street",null,"Webster","MA","01570","508-943-0104","508-943-0104",null,"PK,K,01,02,03,04,05,06,07,08,09,10,11,12",663151]
[382,"Superintendent","David","Lussier","Wellesley","03170000","Public School District","40 Kingsbury Street",null,"Wellesley","MA","02481","781-446-6210","781-446-6208",null,"PK,K,01,02,03,04,05,06,07,08,09,10,11,12",1162874]
[383,"Superintendent","Thomas","Conrad","Wellfleet","03180000","Public School District","78 Eldredge Pkwy",null,"Orleans","MA","02653","508-255-8800","508-240-2351",null,"PK,K,01,02,03,04,05",34528]
[384,"Superintendent","Elizabeth","Schaper","West Boylston","03220000","Public School District","125 Crescent Street",null,"West Boylston","MA","01583","508-835-2917","508-835-8992",null,"PK,K,01,02,03,04,05,06,07,08,09,10,11,12",228152]
[385,"Superintendent","Patricia","Oakley","West Bridgewater","03230000","Public School District","2 Spring Street",null,"West Bridgewater","MA","02379","508-894-1230","508-894-1232",null,"PK,K,01,02,03,04,05,06,07,08,09,10,11,12",308033]
[386,"Superintendent","Michael","Richard","West Springfield","03320000","Public School District","26 Central Street",null,"West Springfield","MA","01089","413-263-3300","413-495-1725",null,"PK,K,01,02,03,04,05,06,07,08,09,10,11,12",1140858]
[387,"Superintendent","Amber","Bock","Westborough","03210000","Public School District","45 West Main Street",null,"Westborough","MA","01581","508-836-7700","508-836-7704",null,"PK,K,01,02,03,04,05,06,07,08,09,10,11,12",810697]
[388,"Superintendent","Stefan","Czaporowski","Westfield","03250000","Public School District","94 North Elm Street","Suite 101","Westfield","MA","01085","413-572-6403","413-572-6518",null,"PK,K,01,02,03,04,05,06,07,08,09,10,11,12",1707795]
[389,"Superintendent","Everett","Olsen","Westford","03260000","Public School District","23 Depot Street",null,"Westford","MA","01886","978-692-5560","978-392-4497",null,"PK,K,01,02,03,04,05,06,07,08,09,10,11,12",966590]
[390,"Superintendent","Aaron","Osborne","Westhampton","03270000","Public School District","19 Stage Rd",null,"Westhampton","MA","01027","413-527-7200","413-529-9497",null,"PK,K,01,02,03,04,05,06",33159]
[391,"Superintendent","Midge","Connolly","Weston","03300000","Public School District","89 Wellesley Street",null,"Weston","MA","02493","781-786-5210","781-786-5209",null,"PK,K,01,02,03,04,05,06,07,08,09,10,11,12",623647]
[392,"Superintendent","Ann","Marie","Westport","03310000","Public School District","17 Main Rd",null,"Westport","MA","02790","508-636-1140","508-636-1146",null,"PK,K,01,02,03,04,05,06,07,08,09,10,11,12",361544]
[393,"Superintendent","Emily","Parks","Westwood","03350000","Public School District","220 Nahatan Street",null,"Westwood","MA","02090","781-326-7500","781-326-8154",null,"PK,K,01,02,03,04,05,06,07,08,09,10,11,12",844152]
[394,"Superintendent","Jennifer","Curtis-Whipple","Weymouth","03360000","Public School District","111 Middle Street",null,"Weymouth","MA","02189","781-335-1460","781-335-8777",null,"PK,K,01,02,03,04,05,06,07,08,09,10,11,12",1789756]
[395,"Superintendent","Darius","Modestow","Whately","03370000","Public School District","113 North Main Street, Office C101",null,"South Deerfield","MA","01373","413-665-1155","413-665-8506",null,"PK,K,01,02,03,04,05,06",28731]
[396,"Superintendent","Jeffrey","Szymaniak","Whitman-Hanson","07800000","Public School District","610 Franklin Street",null,"Whitman","MA","02382","781-618-7412","781-618-7498",null,"PK,K,01,02,03,04,05,06,07,08,09,10,11,12",991269]
[397,"Superintendent","Maureen","Lynch","Whittier Regional Vocational Technical","08850000","Public School District","115 Amesbury Line Rd",null,"Haverhill","MA","01830","978-373-4101","978-521-0260",null,"09,10,11,12",382731]
[398,"Superintendent","Aaron","Osborne","Williamsburg","03400000","Public School District","19 Stage Rd",null,"Westhampton","MA","01027","413-527-7200","413-529-9497",null,"PK,K,01,02,03,04,05,06",49558]
[399,"Superintendent","Kimberley","Grady","Williamstown","03410000","Public School District","115 Church Street",null,"Williamstown","MA","01267","413-458-9582","413-458-2856",null,"PK,K,01,02,03,04,05,06",126561]
[400,"Superintendent","Glenn","Brand","Wilmington","03420000","Public School District","161 Church Street",null,"Wilmington","MA","01887","978-694-6000","978-694-6005",null,"PK,K,01,02,03,04,05,06,07,08,09,10,11,12",788321]
[401,"Superintendent","Steven","Haddad","Winchendon","03430000","Public School District","175 Grove Street",null,"Winchendon","MA","01475","978-297-0031","978-297-5250",null,"PK,K,01,02,03,04,05,06,07,08,09,10,11,12",483961]
[402,"Superintendent","Judith","Evans","Winchester","03440000","Public School District","40 Samoset Road",null,"Winchester","MA","01890","781-721-7004","781-721-0016",null,"PK,K,01,02,03,04,05,06,07,08,09,10,11,12",920005]
[403,"Superintendent","Lisa","Howard","Winthrop","03460000","Public School District","1 Metcalf Square",null,"Winthrop","MA","02152","617-846-5500","617-539-0891",null,"PK,K,01,02,03,04,05,06,07,08,09,10,11,12",570133]
[404,"Superintendent","Matthew","Crowley","Woburn","03470000","Public School District","55 Locust Street",null,"Woburn","MA","01801","781-937-8233","781-932-0668",null,"PK,K,01,02,03,04,05,06,07,08,09,10,11,12",1181041]
[405,"Superintendent","Maureen","Binienda","Worcester","03480000","Public School District","20 Irving Street",null,"Worcester","MA","01609","508-799-3115","508-799-3119",null,"PK,K,01,02,03,04,05,06,07,08,09,10,11,12",7722558]
[406,"Superintendent","Craig","Jurgensen","Worthington","03490000","Public School District","19 Stage Road",null,"Westhampton","MA","01027","413-527-7200","413-238-5880",null,"PK,K,01,02,03,04,05,06",15487]
[407,"Superintendent","Allan","Cameron","Wrentham","03500000","Public School District","120 Taunton Street",null,"Wrentham","MA","02093","508-384-5430","508-384-5444",null,"PK,K,01,02,03,04,05,06",241037]
[408]
[409]
[410]
[411]
[412]
[413]
[414]
[415]
[416]
[417]
[418]
[419]
[420]
[421]
[422]
[423]
[424]
[425]
[426]
[427]
[428]
[429]
[430]
[431]
[432]
[433]
[434]
[435]
[436]
[437]
[438]
[439]
[440]
[441]
[442]
[443]
[444]
[445]
[446]
[447]
[448]
[449]
[450]